Workbook

Sheet Indice
B8: Indice General (I) | L8: Indice General (y II)
B10: Procesos: | L10: Configuración Básica: Actividades y tareas principales
C11: Vendimia | M11: Actividades y Tareas Principales de Vendimia
D12: Valoración de las actividades y tareas. Selección, recolección, transportes, etc | M12: Actividades y Tareas Principales de Previnificación
D13: Valor añadido del proceso e indicadores del proceso de vendimia | M13: Actividades y Tareas Principales de Vinificación Complementaria
D14: Output - Valoración: | F14: Uva en bodega
L15: Configuración Básica: Actividades y tareas auxliares
C16: Previnificación | M16: Auxiliar: Uso de equipo de Depósitos
D17: Valoración de las actividades y tareas. Prensado, maceración, etc | M17: Auxiliar: Uso de equipo de Bombas
D18: Valor añadido del proceso e indicadores | M18: Auxiliar: Uso de equipo de Limpieza
D19: Output - Valoración: | F19: Mosto-Vinos | M19: Auxiliar: Uso de equipo de Frío
M20: Auxiliar: Uso de equipo de Embotellado
C21: Vinificación Complementaria | M21: Auxiliar: Uso de equipo de Vendimia
D22: Valoración de las actividades y tareas. Mezclas, crianza, clarificación, etc. | M22: Auxiliar: Uso de equipo de Prensa
D23: Valor añadido del proceso e indicadores | M23: Auxiliar: Uso de equipo de Barricas
D24: Output - Valoración: | F24: Vinos terminados
C25: Resumen | L25: Configuración básica: Parámetros y ajuste contable
D26: Resumen del proceso industrial y estudio del valor añadido | M26: Párametros generales
D27: Costes e indicadores básicos | N27: Coste medio de hora de operario de bodega
N28: Depósito tipo
B29: Pendiente de desarrollo | N29: Capacidad Barrica Tipo
N30: Consejos de navegación atraves de
B31: Radiografía del Gasto | M31: Consejos de navegacion atráves de los vínculos del libro
B32: Cuadro de mando y analisis de sensibilidad | M32: Notas generales

Sheet Vendimia
A1: Estimación del calculo y getión de costes en bodega
D3: Proceso Vendimia: Actividades y tareas | M3: Resumen del proceso, valor añadido e indicadores
E4: Código: | F4: Lb | G4: Ti | H4: Ne | I4: Ln
C5: Nota 0 | E5: Total | F5: Listán Blanco | G5: Tintilla | H5: Negramoll | I5: Listán Negra | R5: Valor añadido
B6: Costes Directos | M6: Coste de la uva | O6: =E7 -> 110000 | Q6: =E9 -> 144500 | R6: =Q7/Q6 -> 0.107266436
C7: Nota 1 | E7: =F7+G7+H7+I7 -> 110000 | F7: 15000 | G7: 25000 | H7: 40000 | I7: 30000 | M7: Coste de proceso: vendimia | Q7: =E22 -> 15500
E8: =((F7*F8)+(G7*G8)+(H7*H8)+(I7*I8))/E7 -> 1.313636364 | F8: 0.9 | G8: 1.2 | H8: 1.7 | I8: 1.1 | Q8: % s/vendimia | S8: V.añadido | T8: Valores medio para:
E9: =SUM(F9:I9) -> 144500 | F9: =F7*F8 -> 13500 | G9: =G7*G8 -> 30000 | H9: 68000 | I9: 33000 | M9: Valoración de las actividades | T9: 100
E10: Rechazo: | F10: 0.005 | G10: 0.005 | H10: 0.005 | I10: 0.005 | N10: =D16 -> Selección, recolección y transporte | Q10: =E16 -> 1500 | R10: =Q10/$Q$7 -> 0.09677419355 | S10: =Q10/$Q$6 -> 0.01038062284 | T10: =(Q10/$O$6)*$T$9 -> 1.363636364
E11: =SUM(F11:H11) -> 400 | F11: =F10*F7 -> 75 | G11: =G10*G7 -> 125 | H11: =H10*H7 -> 200 | I11: =I10*I7 -> 150 | N11: =D18 -> Recepción de uva en bodega | Q11: =E18 -> 12500 | R11: =Q11/$Q$7 -> 0.8064516129 | S11: =Q11/$Q$6 -> 0.08650519031 | T11: =(Q11/$O$6)*$T$9 -> 11.36363636
F12: =F7-F11 -> 14925 | G12: =G7-G11 -> 24875 | H12: =H7-H11 -> 39800 | I12: =I7-I11 -> 29850 | N12: =D20 -> Personal de vendimia | Q12: =E20 -> 1500 | R12: 0.09677419355 | S12: 0.01038062284 | T12: 1.363636364
D13: Significación: | F13: =F12/$E$7 -> 0.1356818182 | G13: =G12/$E$7 -> 0.2261363636 | H13: 0.3618181818 | I13: 0.2713636364
J14: Comprobación (Cheking)
B15: Costes Indirectos: Procesos y actividades
B16: Vendimia | C16: Nota 2 | D16: Selección, recolección y transporte | E16: ='Actividades y tareas'!D14 -> 1500 | F16: 300 | G16: 200 | H16: 300 | I16: 700 | J16: =IF(E16-SUM(F16:I16)>0,"Faltan "&E16-SUM(F16:I16),IF(E16-SUM(F16:I16)<0,"Exceso "&E16-SUM(F16:I16),"Correcto")) -> Correcto
J17: =SUM(F16:I17) -> 1500
D18: Recepción de uva en bodega | E18: ='Actividades y tareas'!D21 -> 12500 | F18: 1500 | G18: 6500 | H18: 3000 | I18: 1500 | J18: =IF(E18-SUM(F18:I18)>0,"Faltan "&E18-SUM(F18:I18),IF(E18-SUM(F18:I18)<0,"Exceso "&E18-SUM(F18:I18),"Correcto")) -> Correcto
J19: =SUM(F18:I19) -> 12500
D20: Personal de vendimia | E20: ='Actividades y tareas'!D27 -> 1500 | F20: 1500 | J20: =IF(E20-SUM(F20:I20)>0,"Faltan "&E20-SUM(F20:I20),IF(E20-SUM(F20:I20)<0,"Exceso "&E20-SUM(F20:I20),"Correcto")) -> Correcto
J21: =SUM(F20:I21) -> 1500
D22: Total coste de las actividades | E22: =F22+G22+H22+I22 -> 15500 | F22: =F20+F18+F16 -> 3300 | G22: =SUM(G16:G21) -> 6700 | H22: 3300 | I22: 2200 | J22: =IF((E16+E18+E20)-SUM(F22:I22)>0,"Faltan "&(E16+E18+E20)-SUM(F22:I22),IF((E16+E18+E20)-SUM(F22:I22)<0,"Exceso "&(E16+E18+E20)-SUM(F22:I22),"Correcto")) -> Correcto
J23: =F22+G22+H22+I22 -> 15500
E25: =E5 -> Total | F25: =F5 -> Listán Blanco | G25: =G5 -> Tintilla | H25: =H5 -> Negramoll | I25: =I5 -> Listán Negra
B26: Output: Uva en bodega | F26: =F4 -> Lb | G26: =G4 -> Ti | H26: Ne | I26: Ln
D27: Kilos Netos: | E27: =SUM(F27:I27) -> 109450 | F27: =F12 -> 14925 | G27: =G12 -> 24875 | H27: =H12 -> 39800 | I27: =I12 -> 29850
D28: Coste Total: | E28: =SUM(F28:I28) -> 160000 | F28: =F9+F22 -> 16800 | G28: =G9+G22 -> 36700 | H28: =H9+H22 -> 71300 | I28: =I9+I22 -> 35200
D29: Coste Unitario: | E29: =E28/E27 -> 1.461854728 | F29: =F28/F27 -> 1.125628141 | G29: =G28/G27 -> 1.475376884 | H29: =H28/H27 -> 1.791457286 | I29: =I28/I27 -> 1.179229481
D30: Valor Añadido: | E30: =IFERROR((E28-E9)/E9,0) -> 0.107266436 | F30: =IFERROR((F28-F9)/F9,0) -> 0.2444444444 | G30: =IFERROR((G28-G9)/G9,0) -> 0.2233333333 | H30: =IFERROR((H28-H9)/H9,0) -> 0.04852941176 | I30: =IFERROR((I28-I9)/I9,0) -> 0.06666666667

Sheet Previnificacion
A1: Estimación del calculo y getión de costes en bodega
E3: Proceso Previnificación: Actividades y tareas | N3: Resumen del proceso, valor añadido e indicadores
G4: Mosto 1 | H4: Mosto 2 | I4: Mosto 3 | J4: Mosto 4
C5: Nota 0 | F5: Total | G5: =IF(G7>0,$E$7,"")&IF(G10>0,"-"&$E$10,"")&IF(G13>0,"-"&$E$13,"")&IF(G16>0,"-"&$E$16,"") -> Lb-Ti | H5: =IF(H7>0,$E$7,"")&IF(H10>0,"-"&$E$10,"")&IF(H13>0,"-"&$E$13,"")&IF(H16>0,"-"&$E$16,"") -> -Ti-Ne | I5: -Ti-Ne | J5: -Ne-Ln | K5: Comprobación (Cheking) | S5: Valor añadido
B6: Costes Directos | N6: Coste de la uva | P6: =Vendimia!O6 -> 110000 | R6: =Vendimia!Q6 -> 144500
B7: Consumo de uva | C7: Nota 3 | D7: =Vendimia!F25 -> Listán Blanco | E7: =Vendimia!F26 -> Lb | F7: =Vendimia!F27 -> 14925 | G7: 14925 | K7: =IF(F7-SUM(G7:J7)>0,"Faltan "&F7-SUM(G7:J7),IF(F7-SUM(G7:J7)<0,"Exceso "&F7-SUM(G7:J7),"Correcto")) -> Correcto | N7: Coste de proceso: vendimia | R7: =Vendimia!Q7 -> 15500 | S7: =R7/R6 -> 0.107266436
F8: =Vendimia!F29 -> 1.125628141 | G8: =IF(G7="","",IF(G7>0,$F$8,"")) -> 1.125628141 | H8: =IF(H7="","",IF(H7>0,$F$8,"")) ->  | K8: =SUM(G7:J8) -> 14926.12563 | N8: Coste de proceso: previnificación | R8: =F70 -> 9300.889427 | S8: =R8/R6 -> 0.0643660168
F9: =SUM(G9:J9) -> 16800 | G9: =IFERROR(G7*G8,"") -> 16800 | H9: =IFERROR(H7*H8,"") ->  | R9: % s/previnificación | T9: V.añadido | U9: Valores medio para:
D10: =Vendimia!G25 -> Tintilla | E10: =Vendimia!G26 -> Ti | F10: =Vendimia!G27 -> 24875 | G10: 4000 | H10: 20000 | I10: 875 | J10: 0 | K10: =IF(F10-SUM(G10:J10)>0,"Faltan "&F10-SUM(G10:J10),IF(F10-SUM(G10:J10)<0,"Exceso "&F10-SUM(G10:J10),"Correcto")) -> Correcto | N10: Valoración de las actividades | U10: 100
F11: =Vendimia!G29 -> 1.475376884 | G11: =IF(G10="","",IF(G10>0,$F$11,"")) -> 1.475376884 | H11: =IF(H10="","",IF(H10>0,$F$11,"")) -> 1.475376884 | I11: 1.475376884 | K11: =SUM(G10:J11) -> 24879.42613 | O11: =D26 -> Despalillado y Estrujado | R11: =K27+K28 -> 598.7497605 | S11: =R11/$R$8 -> 0.06437553798 | T11: =R11/$R$6 -> 0.004143596959 | U11: =(R11/$P$6)*$U$10 -> 0.5443179641
F12: =SUM(G12:J12) -> 36700 | G12: =IFERROR(G10*G11,"") -> 5901.507538 | H12: =IFERROR(H10*H11,"") -> 29507.53769 | I12: 1290.954774 | O12: =D29 -> Prensado | R12: =K30+K31 -> 1219.939667 | S12: =R12/$R$8 -> 0.1311637641 | T12: =R12/$R$6 -> 0.008442489043 | U12: =(R12/$P$6)*$U$10 -> 1.109036061
D13: =Vendimia!H25 -> Negramoll | E13: =Vendimia!H26 -> Ne | F13: =Vendimia!H27 -> 39800 | H13: 400 | I13: 39000 | J13: 400 | K13: =IF(F13-SUM(G13:J13)>0,"Faltan "&F13-SUM(G13:J13),IF(F13-SUM(G13:J13)<0,"Exceso "&F13-SUM(G13:J13),"Correcto")) -> Correcto | O13: =D32 -> Desfangado | R13: =K33+K35+K36 -> 771.8111111 | S13: 0.08298250583 | T13: 0.005341253364 | U13: 0.7016464646
F14: =Vendimia!H29 -> 1.791457286 | G14: =IF(G13="","",IF(G13>0,$F$14,"")) ->  | H14: =IF(H13="","",IF(H13>0,$F$14,"")) -> 1.791457286 | I14: 1.791457286 | J14: 1.791457286 | K14: =SUM(G13:J14) -> 39805.37437 | O14: =D37 -> Encubado | R14: =K38+K39 -> 4076.574861 | S14: 0.4382994651 | T14: 0.02821159073 | U14: 3.705977146
F15: =SUM(G15:J15) -> 71300 | G15: =IFERROR(G13*G14,"") ->  | H15: =IFERROR(H13*H14,"") -> 716.5829146 | I15: 69866.83417 | J15: 716.5829146 | O15: =D40 -> Maceración Carbónica | R15: =K41+K42+K44 -> 347.0248611 | S15: 0.03731093288 | T15: 0.002401556132 | U15: 0.3154771465
D16: =Vendimia!I25 -> Listán Negra | E16: =Vendimia!I26 -> Ln | F16: =Vendimia!I27 -> 29850 | J16: 29850 | K16: =IF(F16-SUM(G16:J16)>0,"Faltan "&F16-SUM(G16:J16),IF(F16-SUM(G16:J16)<0,"Exceso "&F16-SUM(G16:J16),"Correcto")) -> Correcto | O16: =D50 -> Fermentación Alcohólica | R16: =K51+K52+K54 -> 460.1748611 | S16: 0.04947643607 | T16: 0.003184601115 | U16: 0.4183407828
F17: =Vendimia!I29 -> 1.179229481 | G17: =IF(G16="","",IF(G16>0,$F$17,"")) ->  | H17: =IF(H16="","",IF(H16>0,$F$17,"")) ->  | J17: 1.179229481 | K17: =SUM(G16:J17) -> 29851.17923 | O17: =D55 -> Maceración Pelicular en Frío | R17: =K56+K57+K59 -> 541.2273611 | S17: 0.05819092522 | T17: 0.00374551807 | U17: 0.4920248737
F18: =SUM(G18:J18) -> 35200 | G18: =IFERROR(G16*G17,"") ->  | H18: =IFERROR(H16*H17,"") ->  | J18: 35200 | O18: =D60 -> Fermentación Maloláctica | R18: =K61+K62+K64 -> 563.7173611 | S18: 0.06060897353 | T18: 0.003901158208 | U18: 0.5124703283
D19: Subtotal Costes Directos | F19: =SUM(G19:J19) -> 109450 | G19: =G16+G13+G10+G7 -> 18925 | H19: =H16+H13+H10+H7 -> 20400 | I19: 39875 | J19: 30250 | O19: =D65 -> Descube y Escurrido | R19: =K66+K67+K69 -> 721.6695833 | S19: 0.07759145929 | T19: 0.004994253172 | U19: 0.6560632576
F20: =F21/F19 -> 1.461854728 | G20: =G21/G19 -> 1.199551257 | H20: =H21/H19 -> 1.481574539 | I20: 1.784521353 | J20: 1.187325055 | T20: =SUM(T11:T19) -> 0.0643660168 | U20: =SUM(U10:V19) -> 108.455354
F21: =SUM(G21:J21) -> 160000 | G21: =_xlfn.AGGREGATE(9,6,G9,G12,G15,G18) -> 22701.50754 | H21: =_xlfn.AGGREGATE(9,6,H9,H12,H15,H18) -> 30224.1206 | I21: 71157.78894 | J21: 35916.58291
D22: Rendimientos | G22: 0.75 | H22: 0.7 | I22: 0.7 | J22: 0.7
F23: =SUM(G23:J23) -> 77561.25 | G23: =G22*G19 -> 14193.75 | H23: =H22*H19 -> 14280 | I23: =I22*I19 -> 27912.5 | J23: =J22*J19 -> 21175
B25: Costes Indirectos: Procesos y actividades (I)
B26: Previnificación | C26: Nota 3 | D26: Despalillado y Estrujado | E26: nº de veces: | G26: 1 | H26: 1 | I26: 1 | J26: 1
E27: CF: | F27: ='Actividades y tareas'!M7 -> 40.38793388 | G27: =IFERROR(IF(G26="","",IF(G26>0,$F$27*G26,"")),"") -> 40.38793388 | H27: =IFERROR(IF(H26="","",IF(H26>0,$F$27*H26,"")),"") -> 40.38793388 | I27: 40.38793388 | J27: 40.38793388 | K27: =_xlfn.AGGREGATE(9,6,G27,H27,I27,J27) -> 161.5517355
E28: CV: | F28: ='Actividades y tareas'!M8 -> 3.9945 | G28: =IFERROR(IF(G26="","",IF(G26>0,$F$28*(G19/1000)*(G26/G26),"")),"") -> 75.5959125 | H28: =IFERROR(IF(H26="","",IF(H26>0,$F$28*(H19/1000)*(H26/H26),"")),"") -> 81.4878 | I28: 159.2806875 | J28: 120.833625 | K28: =_xlfn.AGGREGATE(9,6,G28,H28,I28,J28) -> 437.198025
D29: Prensado | E29: nº de veces: | G29: 1 | H29: 1 | I29: 1 | J29: 1
E30: CF: | F30: ='Actividades y tareas'!M29 -> 11.11166667 | G30: =IFERROR(IF(G29="","",IF(G29>0,$F$30*G29,"")),"") -> 11.11166667 | H30: =IFERROR(IF(H29="","",IF(H29>0,$F$30*H29,"")),"") -> 11.11166667 | I30: 11.11166667 | J30: 11.11166667 | K30: =_xlfn.AGGREGATE(9,6,G30,H30,I30,J30) -> 44.44666667
E31: CV: | F31: ='Actividades y tareas'!M30 -> 10.74 | G31: =IFERROR(IF(G29="","",IF(G29>0,$F$31*(G19/1000)*(G29/G29),"")),"") -> 203.2545 | H31: =IFERROR(IF(H29="","",IF(H29>0,$F$31*(H19/1000)*(H29/H29),"")),"") -> 219.096 | I31: 428.2575 | J31: 324.885 | K31: =_xlfn.AGGREGATE(9,6,G31,H31,I31,J31) -> 1175.493
D32: Desfangado | E32: nº de depósitos: | G32: 1 | H32: 1 | I32: 1 | J32: 1
E33: CF: | F33: ='Actividades y tareas'!M60 -> 12.02777778 | G33: =IFERROR(IF(G32="","",IF(G32>0,$F$33*G32,"")),"") -> 12.02777778 | H33: =IF(H32="","",IF(H32>0,$F$33*H32,"")) -> 12.02777778 | I33: 12.02777778 | J33: 12.02777778 | K33: =_xlfn.AGGREGATE(9,6,G33,H33,I33,J33) -> 48.11111111
E34: Nº veces | G34: 1 | H34: 1 | I34: 1 | J34: 1
E35: CF: | F35: ='Actividades y tareas'!M59 -> 27.695 | G35: =IFERROR(IF(G34="","",IF(G34>0,$F$35*G34,"")),"") -> 27.695 | H35: =IFERROR(IF(H34="","",IF(H34>0,$F$35*H34,"")),"") -> 27.695 | I35: 27.695 | J35: 27.695 | K35: =_xlfn.AGGREGATE(9,6,G35,H35,I35,J35) -> 110.78
E36: CV: | F36: ='Actividades y tareas'!M61 -> 5.6 | G36: =IFERROR(IF(G34="","",IF(G34>0,$F$36*(G19/1000)*(G34/G34),"")),"") -> 105.98 | H36: =IFERROR(IF(H34="","",IF(H34>0,$F$36*(H19/1000)*(H34/H34),"")),"") -> 114.24 | I36: 223.3 | J36: 169.4 | K36: =_xlfn.AGGREGATE(9,6,G36,H36,I36,J36) -> 612.92
D37: Encubado | E37: nº de depósitos: | G37: 1 | H37: 1 | I37: 1 | J37: 1
E38: CF: | F38: ='Actividades y tareas'!M76 -> 960.9727778 | G38: =IFERROR(IF(G37="","",IF(G37>0,$F$38*G37,"")),"") -> 960.9727778 | H38: =IFERROR(IF(H37="","",IF(H37>0,$F$38*H37,"")),"") -> 960.9727778 | I38: 960.9727778 | J38: 960.9727778 | K38: =_xlfn.AGGREGATE(9,6,G38,H38,I38,J38) -> 3843.891111
E39: CV: | F39: ='Actividades y tareas'!M77 -> 3 | G39: =IFERROR(IF(G37="","",IF(G37>0,$F$39*(G23/1000)*(G37/G37),"")),"") -> 42.58125 | H39: =IFERROR(IF(H37="","",IF(H37>0,$F$39*(H23/1000)*(H37/H37),"")),"") -> 42.84 | I39: 83.7375 | J39: 63.525 | K39: =_xlfn.AGGREGATE(9,6,G39,H39,I39,J39) -> 232.68375
D40: Maceración Carbónica | E40: Nº veces | G40: 1 | H40: 1 | I40: 1 | J40: 1
E41: CF: | F41: ='Actividades y tareas'!M96 -> 12.945 | G41: =IFERROR(IF(G40="","",IF(G40>0,$F$41*G40,"")),"") -> 12.945 | H41: =IFERROR(IF(H40="","",IF(H40>0,$F$41*H40,"")),"") -> 12.945 | I41: 12.945 | J41: 12.945 | K41: =_xlfn.AGGREGATE(9,6,G41,H41,I41,J41) -> 51.78
E42: CV: | F42: ='Actividades y tareas'!M97 -> 3 | G42: =IFERROR(IF(G40="","",IF(G40>0,$F$42*(G23/1000)*(G40/G40),"")),"") -> 42.58125 | H42: =IFERROR(IF(H40="","",IF(H40>0,$F$42*(H23/1000)*(H40/H40),"")),"") -> 42.84 | I42: 83.7375 | J42: 63.525 | K42: =_xlfn.AGGREGATE(9,6,G42,H42,I42,J42) -> 232.68375
E43: nº de depósitos: | G43: 1 | H43: 1 | I43: 1 | J43: 1
E44: CF: | F44: ='Actividades y tareas'!M98 -> 26.47777778 | G44: =IFERROR(IF(G43="","",IF(G43>0,$F$44*G43,"")),"") -> 26.47777778 | H44: =IF(H43="","",IF(H43>0,$F$33*H43,"")) -> 12.02777778 | I44: 12.02777778 | J44: 12.02777778 | K44: =_xlfn.AGGREGATE(9,6,G44,H44,I44,J44) -> 62.56111111
B49: Costes Indirectos: Procesos y actividades (y II)
B50: Previnificación | C50: Nota 3 | D50: Fermentación Alcohólica | E50: Nº veces | G50: 1 | H50: 1 | I50: 1 | J50: 1
E51: CF: | F51: ='Actividades y tareas'!M114 -> 4.445 | G51: =IFERROR(IF(G50="","",IF(G50>0,$F$51*G50,"")),"") -> 4.445 | H51: =IFERROR(IF(H50="","",IF(H50>0,$F$51*H50,"")),"") -> 4.445 | I51: 4.445 | J51: 4.445 | K51: =_xlfn.AGGREGATE(9,6,G51,H51,I51,J51) -> 17.78
E52: CV: | F52: ='Actividades y tareas'!M115 -> 3 | G52: =IFERROR(IF(G50="","",IF(G50>0,$F$52*(G23/1000)*(G50/G50),"")),"") -> 42.58125 | H52: =IFERROR(IF(H50="","",IF(H50>0,$F$52*(H23/1000)*(H50/H50),"")),"") -> 42.84 | I52: 83.7375 | J52: 63.525 | K52: =_xlfn.AGGREGATE(9,6,G52,H52,I52,J52) -> 232.68375
E53: nº de depósitos: | G53: 1 | H53: 1 | I53: 1 | J53: 1
E54: CF: | F54: ='Actividades y tareas'!M116 -> 52.42777778 | G54: =IFERROR(IF(G53="","",IF(G53>0,$F$54*G53,"")),"") -> 52.42777778 | H54: =IFERROR(IF(H53="","",IF(H53>0,$F$54*H53,"")),"") -> 52.42777778 | I54: 52.42777778 | J54: 52.42777778 | K54: =_xlfn.AGGREGATE(9,6,G54,H54,I54,J54) -> 209.7111111
D55: Maceración Pelicular en Frío | E55: Nº veces | G55: 1 | H55: 1 | I55: 1 | J55: 1
E56: CF: | F56: ='Actividades y tareas'!M129 -> 4.445 | G56: =IFERROR(IF(G55="","",IF(G55>0,$F$56*G55,"")),"") -> 4.445 | H56: =IFERROR(IF(H55="","",IF(H55>0,$F$56*H55,"")),"") -> 4.445 | I56: 4.445 | J56: 4.445 | K56: =_xlfn.AGGREGATE(9,6,G56,H56,I56,J56) -> 17.78
E57: CV: | F57: ='Actividades y tareas'!M130 -> 5 | G57: =IFERROR(IF(G55="","",IF(G55>0,$F$57*(G23/1000)*(G55/G55),"")),"") -> 70.96875 | H57: =IFERROR(IF(H55="","",IF(H55>0,$F$57*(H23/1000)*(H55/H55),"")),"") -> 71.4 | I57: 139.5625 | J57: 105.875 | K57: =_xlfn.AGGREGATE(9,6,G57,H57,I57,J57) -> 387.80625
E58: nº de depósitos: | G58: 1 | H58: 1 | I58: 1 | J58: 1
E59: CF: | F59: ='Actividades y tareas'!M131 -> 33.91027778 | G59: =IFERROR(IF(G58="","",IF(G58>0,$F$59*G58,"")),"") -> 33.91027778 | H59: =IFERROR(IF(H58="","",IF(H58>0,$F$59*H58,"")),"") -> 33.91027778 | I59: 33.91027778 | J59: 33.91027778 | K59: =_xlfn.AGGREGATE(9,6,G59,H59,I59,J59) -> 135.6411111
D60: Fermentación Maloláctica | E60: Nº veces | G60: 1 | H60: 1 | I60: 1 | J60: 1
E61: CF: | F61: ='Actividades y tareas'!M144 -> 4.445 | G61: =IFERROR(IF(G60="","",IF(G60>0,$F$61*G60,"")),"") -> 4.445 | H61: =IFERROR(IF(H60="","",IF(H60>0,$F$61*H60,"")),"") -> 4.445 | I61: 4.445 | J61: 4.445 | K61: =_xlfn.AGGREGATE(9,6,G61,H61,I61,J61) -> 17.78
E62: CV: | F62: ='Actividades y tareas'!M130 -> 5 | G62: =IFERROR(IF(G60="","",IF(G60>0,$F$62*(G23/1000)*(G60/G60),"")),"") -> 70.96875 | H62: =IFERROR(IF(H60="","",IF(H60>0,$F$62*(H23/1000)*(H60/H60),"")),"") -> 71.4 | I62: 139.5625 | J62: 105.875 | K62: =_xlfn.AGGREGATE(9,6,G62,H62,I62,J62) -> 387.80625
E63: nº de depósitos: | G63: 1 | H63: 1 | I63: 1 | J63: 1
E64: CF: | F64: ='Actividades y tareas'!M146 -> 39.53277778 | G64: =IFERROR(IF(G63="","",IF(G63>0,$F$64*G63,"")),"") -> 39.53277778 | H64: =IFERROR(IF(H63="","",IF(H63>0,$F$64*H63,"")),"") -> 39.53277778 | I64: 39.53277778 | J64: 39.53277778 | K64: =_xlfn.AGGREGATE(9,6,G64,H64,I64,J64) -> 158.1311111
D65: Descube y Escurrido | E65: Nº veces | G65: 1 | H65: 1 | I65: 1 | J65: 1
E66: CF: | F66: ='Actividades y tareas'!M170 -> 38.445 | G66: =IFERROR(IF(G65="","",IF(G65>0,$F$66*G65,"")),"") -> 38.445 | H66: =IFERROR(IF(H65="","",IF(H65>0,$F$66*H65,"")),"") -> 38.445 | I66: 38.445 | J66: 38.445 | K66: =_xlfn.AGGREGATE(9,6,G66,H66,I66,J66) -> 153.78
E67: CV: | F67: ='Actividades y tareas'!M171 -> 5 | G67: =IFERROR(IF(G65="","",IF(G65>0,$F$67*(G23/1000)*(G65/G65),"")),"") -> 70.96875 | H67: =IFERROR(IF(H65="","",IF(H65>0,$F$67*(H23/1000)*(H65/H65),"")),"") -> 71.4 | I67: 139.5625 | J67: 105.875 | K67: =_xlfn.AGGREGATE(9,6,G67,H67,I67,J67) -> 387.80625
E68: nº de depósitos: | G68: 1 | H68: 1 | I68: 1 | J68: 1
E69: CF: | F69: ='Actividades y tareas'!M172 -> 45.02083333 | G69: =IFERROR(IF(G68="","",IF(G68>0,$F$69*G68,"")),"") -> 45.02083333 | H69: =IFERROR(IF(H68="","",IF(H68>0,$F$69*H68,"")),"") -> 45.02083333 | I69: 45.02083333 | J69: 45.02083333 | K69: =_xlfn.AGGREGATE(9,6,G69,H69,I69,J69) -> 180.0833333
D70: Subtotal coste de las actividades | F70: =G70+H70+I70+J70 -> 9300.889427 | G70: =_xlfn.AGGREGATE(9,6,G27,G28,G30,G31,G33,G35,G36,G38,G39,G41,G42,G44,G51,G52,G54,G56,G57,G59,G61,G62,G64,G66,G67,G69) -> 2039.770013 | H70: =_xlfn.AGGREGATE(9,6,H27,H28,H30,H31,H33,H35,H36,H38,H39,H41,H42,H44,H51,H52,H54,H56,H57,H59,H61,H62,H64,H66,H67,H69) -> 2057.383401 | I70: 2780.577788 | J70: 2423.158226
D72: Merma del proceso | F72: =Notas!G31 -> 0.012 | G72: =$F$72*G23 -> 170.325 | H72: =$F$72*H23 -> 171.36 | I72: =$F$72*I23 -> 334.95 | J72: =$F$72*J23 -> 254.1
D73: Mostos netos | F73: =SUM(G73:J73) -> 76630.515 | G73: =G23-G72 -> 14023.425 | H73: =H23-H72 -> 14108.64 | I73: =I23-I72 -> 27577.55 | J73: =J23-J72 -> 20920.9
D75: Output: Mosto - Vino | F75: TOTAL | G75: =G4 -> Mosto 1 | H75: Mosto 2 | I75: Mosto 3 | J75: Mosto 4
G76: Lb-Ti | H76: -Ti-Ne | I76: -Ti-Ne | J76: -Ne-Ln
D78: Mosto-Vino (Litros): | F78: =SUM(G78:J78) -> 76628 | G78: =INT(G73) -> 14023 | H78: =INT(H73) -> 14108 | I78: =INT(I73) -> 27577 | J78: =INT(J73) -> 20920
D79: Coste Total: | F79: =SUM(G79:J79) -> 169300.8894 | G79: =G70+G21 -> 24741.27755 | H79: =H70+H21 -> 32281.504 | I79: =I70+I21 -> 73938.36673 | J79: =J70+J21 -> 38339.74114
D80: Coste Unitario: | F80: =F79/F78 -> 2.20938677 | G80: =G79/G78 -> 1.764335559 | H80: =H79/H78 -> 2.288170116 | I80: =I79/I78 -> 2.681160631 | J80: =J79/J78 -> 1.832683611
D81: Valor Añadido | F81: =F70/F21 -> 0.05813055892 | G81: =G70/G21 -> 0.08985174265 | H81: =H70/H21 -> 0.06807091024 | I81: =I70/I21 -> 0.03907622524 | J81: =J70/J21 -> 0.06746627961

Sheet Vinificacion
A1: Estimación del calculo y getión de costes en bodega
D3: Proceso Vinificación Complementaria: Actividades y tareas | N3: Resumen del proceso, valor añadido e indicadores
F4: Código: | G4: Vino 1 | H4: Vino 2 | I4: Vino 3 | J4: Vino 4
C5: Nota 0 | F5: Total | G5: Joven Blanco Semiseco | H5: Tinto Crianza | I5: Tinto Barrica | J5: Tinto Reserva | K5: Comprobación (Cheking) | S5: Valor añadido
B6: Costes Directos | N6: Coste de la uva | P6: =Vendimia!O6 -> 110000 | R6: =Vendimia!Q6 -> 144500
B7: Consumo de Mostos - Vinos | C7: Nota 4 | D7: =Previnificacion!G75 -> Mosto 1 | E7: =Previnificacion!G76 -> Lb-Ti | F7: =Previnificacion!G78 -> 14023 | G7: 14023 | K7: =IF(F7-SUM(G7:J7)>0,"Faltan "&F7-SUM(G7:J7),IF(F7-SUM(G7:J7)<0,"Exceso "&F7-SUM(G7:J7),"Correcto")) -> Correcto | N7: Coste de proceso: vendimia | R7: =Vendimia!Q7 -> 15500 | S7: =R7/R6 -> 0.107266436
F8: =Previnificacion!G80 -> 1.764335559 | G8: =IF(G7="","",IF(G7>0,$F$8,"")) -> 1.764335559 | H8: =IF(H7="","",IF(H7>0,$F$8,"")) ->  | K8: =SUM(G7:J8) -> 14024.76434 | N8: Coste de proceso: previnificación | R8: =Previnificacion!R8 -> 9300.889427 | S8: =R8/R6 -> 0.0643660168
F9: =SUM(G9:J9) -> 24741.27755 | G9: =IFERROR(G7*G8,"") -> 24741.27755 | H9: =IFERROR(H7*H8,"") ->  | N9: Coste de proceso: vinificación | R9: =F91+F92 -> 72031.50974 | S9: =R9/R6 -> 0.4984879567
D10: =Previnificacion!H4 -> Mosto 2 | E10: =Previnificacion!H5 -> -Ti-Ne | F10: =Previnificacion!H78 -> 14108 | H10: 12108 | J10: 2000 | K10: =IF(F10-SUM(G10:J10)>0,"Faltan "&F10-SUM(G10:J10),IF(F10-SUM(G10:J10)<0,"Exceso "&F10-SUM(G10:J10),"Correcto")) -> Correcto | R10: % s/vinificación | T10: V.añadido | U10: Valores medio para:
F11: =Previnificacion!H80 -> 2.288170116 | G11: =IF(G10="","",IF(G10>0,$F$11,"")) ->  | H11: =IF(H10="","",IF(H10>0,$F$11,"")) -> 2.288170116 | J11: 2.288170116 | K11: =SUM(G10:J11) -> 14112.57634 | N11: Valoración de las actividades | U11: 100
F12: =SUM(G12:J12) -> 32281.504 | G12: =IFERROR(G10*G11,"") ->  | H12: =IFERROR(H10*H11,"") -> 27705.16377 | J12: 4576.340233 | O12: =D26 -> Selección, Mezcla o Coupage | R12: =K27+K28+K29 -> 329.7751111 | S12: =R12/$R$9 -> 0.004578206292 | T12: =R12/$R$6 -> 0.0022821807 | U12: =(R12/$P$6)*$U$11 -> 0.2997955556
D13: =Previnificacion!I4 -> Mosto 3 | E13: =Previnificacion!I5 -> -Ti-Ne | F13: =Previnificacion!I78 -> 27577 | H13: 17850 | I13: 5000 | J13: 4727 | K13: =IF(F13-SUM(G13:J13)>0,"Faltan "&F13-SUM(G13:J13),IF(F13-SUM(G13:J13)<0,"Exceso "&F13-SUM(G13:J13),"Correcto")) -> Correcto | O13: =D30 -> Trasiegos | R13: =K31+K33 -> 286.75 | S13: =R13/$R$9 -> 0.003980896708 | T13: =R13/$R$6 -> 0.001984429066 | U13: =(R13/$P$6)*$U$11 -> 0.2606818182
F14: =Previnificacion!I80 -> 2.681160631 | G14: =IF(G13="","",IF(G13>0,$F$14,"")) ->  | H14: =IF(H13="","",IF(H13>0,$F$14,"")) -> 2.681160631 | I14: 2.681160631 | J14: 2.681160631 | K14: =SUM(G13:J14) -> 27585.04348 | O14: =D34 -> Clarificación | R14: =K35+K37 -> 241.9645 | S14: 0.003359147974 | T14: 0.00167449481 | U14: 0.2199677273
F15: =SUM(G15:J15) -> 73938.36673 | G15: =IFERROR(G13*G14,"") ->  | H15: =IFERROR(H13*H14,"") -> 47858.71727 | I15: 13405.80316 | J15: 12673.8463 | O15: =D38 -> Filtrados | R15: =K39+K41+K43+K45+K47 -> 621.116378 | S15: 0.0086228427 | T15: 0.004298383239 | U15: 0.5646512527
D16: =Previnificacion!J4 -> Mosto 4 | E16: =Previnificacion!J5 -> -Ne-Ln | F16: =Previnificacion!J78 -> 20920 | H16: 950 | I16: 18000 | J16: 1970 | K16: =IF(F16-SUM(G16:J16)>0,"Faltan "&F16-SUM(G16:J16),IF(F16-SUM(G16:J16)<0,"Exceso "&F16-SUM(G16:J16),"Correcto")) -> Correcto | O16: =D56 -> Preparación de la crianza | R16: =K56+K57+K58 -> 502.9115 | S16: 0.006981826451 | T16: 0.003480356401 | U16: 0.4571922727
F17: =Previnificacion!J80 -> 1.832683611 | G17: =IF(G16="","",IF(G16>0,$F$17,"")) ->  | H17: =IF(H16="","",IF(H16>0,$F$17,"")) -> 1.832683611 | I17: 1.832683611 | J17: 1.832683611 | K17: =SUM(G16:J17) -> 20925.49805 | O17: =D59 -> Crianza | R17: =K59+K62 -> 1902.847222 | S17: 0.02641687269 | T17: 0.01316849289 | U17: 1.729861111
F18: =SUM(G18:J18) -> 38339.74114 | G18: =IFERROR(G16*G17,"") ->  | H18: =IFERROR(H16*H17,"") -> 1741.04943 | I18: 32988.305 | J18: 3610.386713 | O18: =D63 -> Trasiegos crianza | R18: =K63+K64+K65 -> 158.5015 | S18: 0.002200446729 | T18: 0.001096896194 | U18: 0.1440922727
D19: Subtotal Costes Directos | F19: =SUM(G19:J19) -> 76628 | G19: =G16+G13+G10+G7 -> 14023 | H19: =H16+H13+H10+H7 -> 30908 | I19: 23000 | J19: 8697 | O19: =D66 -> Clarificación y estabilización | R19: =K66+K67 -> 129.3199 | S19: 0.001795324025 | T19: 0.0008949474048 | U19: 0.1175635455
F20: =F21/F19 -> 2.20938677 | G20: =IFERROR(G21/G19,"") -> 1.764335559 | H20: =IFERROR(H21/H19,"") -> 2.501130143 | I20: =IFERROR(I21/I19,"") -> 2.017135137 | J20: 2.398594142 | O20: =D68 -> Filtrado crianzas | R20: =K68+K69+K70 -> 145.81025 | S20: 0.002024256475 | T20: 0.001009067474 | U20: 0.1325547727
F21: =SUM(G21:J21) -> 169300.8894 | G21: =_xlfn.AGGREGATE(9,6,G9,G12,G15,G18) -> 24741.27755 | H21: =_xlfn.AGGREGATE(9,6,H9,H12,H15,H18) -> 77304.93047 | I21: 46394.10815 | J21: 20860.57325 | O21: =D71 -> Selección de vestido | R21: =K78 -> 64574.16 | S21: 0.896471006 | T21: 0.44688 | U21: 58.70378182
D22: Mermas estimadas en trasiegos, clarificación, filtrados y crianza: | G22: 0.005 | H22: 0.0115 | I22: 0.0115 | J22: 0.011 | O22: =D79 -> Lavado y llenado | R22: =K80 -> 2342.009483 | S22: 0.03251368035 | T22: 0.01620767808 | U22: 2.12909953
G23: =IFERROR((1-G22)*G19,"") -> 13952.885 | H23: =IFERROR((1-H22)*H19,"") -> 30552.558 | I23: 22735.5 | J23: 8601.333 | O23: =D81 -> Coste de vestir | R23: =K82 -> 796.343898 | S23: 0.01105549364 | T23: 0.005511030436 | U23: 0.7239489982
T24: =SUM(T12:T23) -> 0.4984879567 | U24: =SUM(U11:V23) -> 165.4831907
B25: Costes Indirectos: Procesos y actividades (I)
B26: Vinificación Complementaria | C26: Nota 4 | D26: Selección, Mezcla o Coupage | E26: nº de depósitos: | G26: 1 | H26: 1 | I26: 1 | J26: 1
E27: CF: | F27: ='Actividades y tareas'!W9 -> 12.02777778 | G27: =IFERROR(IF(G26="","",IF(G26>0,$F$27*G26,"")),"") -> 12.02777778 | H27: =IFERROR(IF(H26="","",IF(H26>0,$F$27*H26,"")),"") -> 12.02777778 | I27: 12.02777778 | J27: 12.02777778 | K27: =_xlfn.AGGREGATE(9,6,G27,H27,I27,J27) -> 48.11111111
E28: CF: | F28: ='Actividades y tareas'!W7 -> 12.945 | G28: =IFERROR(IF(G26="","",IF(G26>0,$F$28,"")),"") -> 12.945 | H28: =IFERROR(IF(H26="","",IF(H26>0,$F$28,"")),"") -> 12.945 | I28: 12.945 | J28: 12.945 | K28: =_xlfn.AGGREGATE(9,6,G28,H28,I28,J28) -> 51.78
E29: CV: | F29: ='Actividades y tareas'!W8 -> 3 | G29: =IFERROR(IF(G26="","",IF(G26>0,$F$29*(G19/1000)*(G26/G26),"")),"") -> 42.069 | H29: =IFERROR(IF(H26="","",IF(H26>0,$F$29*(H19/1000)*(H26/H26),"")),"") -> 92.724 | I29: 69 | J29: 26.091 | K29: 229.884
C30: Clarificacion y estabilización: | D30: Trasiegos | E30: nº de veces: | G30: 3 | H30: 2 | I30: 1 | J30: 1
E31: CF: | F31: ='Actividades y tareas'!$W$21 -> 25.5 | G31: =IFERROR(IF(G30="","",IF(G30>0,$F$31*G30,"")),"") -> 76.5 | H31: =IFERROR(IF(H30="","",IF(H30>0,$F$31*H30,"")),"") -> 51 | I31: 25.5 | J31: 25.5 | K31: 178.5
E32: nº de depósitos a usar: | G32: 1 | H32: 2 | I32: 2 | J32: 4
E33: CF: | F33: ='Actividades y tareas'!W24 -> 12.02777778 | G33: =IFERROR(IF(G32="","",IF(G32>0,$F$33*G32,"")),"") -> 12.02777778 | H33: =IFERROR(IF(H32="","",IF(H32>0,$F$33*H32,"")),"") -> 24.05555556 | I33: 24.05555556 | J33: 48.11111111 | K33: 108.25
D34: Clarificación | E34: nº de veces: | G34: 1 | H34: 1 | I34: 0 | J34: 1
E35: CF: | F35: ='Actividades y tareas'!W22 -> 8.5 | G35: =IFERROR(IF(G34="","",IF(G34>0,$F$35*G34,"")),"") -> 8.5 | H35: =IFERROR(IF(H34="","",IF(H34>0,$F$35*H34,"")),"") -> 8.5 | J35: 8.5 | K35: 25.5
E36: Tipo Clarificante: | G36: Vegetales (tanino,…) | H36: Orgánicos (albumina, …) | I36: Orgánicos (albumina, …) | J36: Minerales (bentonita, …)
G37: =IF(G35="","",IF(G34>0,IFERROR(VLOOKUP(G36,'Actividades y tareas'!$V$33:$Z$37,5,FALSE)*(G19)/1000,""),"")) -> 35.0575 | H37: =IF(H34>0,IFERROR(VLOOKUP(H36,'Actividades y tareas'!$V$33:$Z$37,5,FALSE)*(H19)/1000,""),"") -> 148.3584 | I37: =IF(I34>0,IFERROR(VLOOKUP(I36,'Actividades y tareas'!$V$33:$Z$37,5,FALSE)*(I19)/1000,""),"") ->  | J37: =IF(J34>0,IFERROR(VLOOKUP(J36,'Actividades y tareas'!$V$33:$Z$37,5,FALSE)*(J19)/1000,""),"") -> 33.0486 | K37: 216.4645
D38: Filtrados | E38: nº de veces: | G38: 1 | H38: 1 | I38: 1 | J38: 1
E39: CF: | F39: ='Actividades y tareas'!W23 -> 17 | G39: =IF(G35="","",IFERROR(IF(G38="","",IF(G38>0,$F$39*G38,"")),"")) -> 17 | H39: =IF(H35="","",IFERROR(IF(H38="","",IF(H38>0,$F$39*H38,"")),"")) -> 17 | J39: 17 | K39: 51
E40: Tipo Filtrado: | G40: Filtro M (por Membranas) | H40: Filtro P (por Placas) | I40: Filtro M (por Membranas) | J40: Filtro T (por Tierras)
G41: =IF(G35="","",IF(G38=0,"",IF(G38=" "," ",IFERROR(VLOOKUP(G40,'Actividades y tareas'!$V$40:$Z$42,5,FALSE)*((G23)/1000)*G38,"")))) -> 34.8822125 | H41: =IF(H35="","",IF(H38=0,"",IF(H38=" "," ",IFERROR(VLOOKUP(H40,'Actividades y tareas'!$V$40:$Z$42,5,FALSE)*((H23)/1000)*H38,"")))) -> 116.0997204 | I41: =IF(I35="","",IF(I38=0,"",IF(I38=" "," ",IFERROR(VLOOKUP(I40,'Actividades y tareas'!$V$40:$Z$42,5,FALSE)*((I23)/1000)*I38,"")))) ->  | J41: =IF(J35="","",IF(J38=0,"",IF(J38=" "," ",IFERROR(VLOOKUP(J40,'Actividades y tareas'!$V$40:$Z$42,5,FALSE)*((J23)/1000)*J38,"")))) -> 41.2863984 | K41: 192.2683313
E42: ¿Utiliza bomba?: | G42: SI | H42: SI | I42: SI | J42: SI
G43: =IF(G35="","",IF(G38>0,IFERROR(IF(G42="SI",'Actividades y tareas'!$W$25+('Actividades y tareas'!$W$27*(Vinificacion!G23/1000))*G38,""),""),"")) -> 46.303655 | H43: =IF(H35="","",IF(H38>0,IFERROR(IF(H42="SI",'Actividades y tareas'!$W$25+('Actividades y tareas'!$W$27*(Vinificacion!H23/1000))*H38,""),""),"")) -> 96.102674 | I43: =IF(I35="","",IF(I38>0,IFERROR(IF(I42="SI",'Actividades y tareas'!$W$25+('Actividades y tareas'!$W$27*(Vinificacion!I23/1000))*I38,""),""),"")) ->  | J43: =IF(J35="","",IF(J38>0,IFERROR(IF(J42="SI",'Actividades y tareas'!$W$25+('Actividades y tareas'!$W$27*(Vinificacion!J23/1000))*J38,""),""),"")) -> 30.248999 | K43: 172.655328
E44: nº de depósitos a usar: | G44: 1 | H44: 1 | I44: 2 | J44: 4
E45: CF: | F45: ='Actividades y tareas'!W24 -> 12.02777778 | G45: =IF(G39="","",IFERROR(IF(G44="","",IF(G44>0,$F45*G44,"")),"")) -> 12.02777778 | H45: =IF(H39="","",IFERROR(IF(H44="","",IF(H44>0,$F45*H44,"")),"")) -> 12.02777778 | J45: 48.11111111 | K45: 72.16666667
E46: ¿Esabiliza con frío?: | G46: SI | H46: SI | I46: SI | J46: SI
G47: =IF(G39="","",IFERROR(IF(G23="","",IF(G23>0,IF(G46="SI",'Actividades y tareas'!$Y$48+('Actividades y tareas'!$Z$48*(Vinificacion!G23/1000)),""),"")),"")) -> 36.84327 | H47: =IF(H39="","",IFERROR(IF(H23="","",IF(H23>0,IF(H46="SI",'Actividades y tareas'!$Y$48+('Actividades y tareas'!$Z$48*(Vinificacion!H23/1000)),""),"")),"")) -> 70.042616 | I47: =IF(I39="","",IFERROR(IF(I23="","",IF(I23>0,IF(I46="SI",'Actividades y tareas'!$Y$48+('Actividades y tareas'!$Z$48*(Vinificacion!I23/1000)),""),"")),"")) ->  | J47: =IF(J39="","",IFERROR(IF(J23="","",IF(J23>0,IF(J46="SI",'Actividades y tareas'!$Y$48+('Actividades y tareas'!$Z$48*(Vinificacion!J23/1000)),""),"")),"")) -> 26.140166 | K47: 133.026052
B53: Costes Indirectos: Procesos y actividades (y II)
B54: Vinificación Complementaria | C54: Nota 4 | D54: Litros disponibles y barricas estimadas para crianza: | G54: =IF(G35="",G23,"") ->  | H54: =IF(H35="",H23,"") ->  | I54: 22735.5
G55: =IFERROR(ROUND(G54/Barrica,0),"") ->  | H55: =IFERROR(ROUND(H54/Barrica,0),"") ->  | I55: =IFERROR(ROUND(I54/Barrica,0),"") -> 101 | J55: =IFERROR(ROUND(J54/Barrica,0),"") -> 
C56: Crianza en barricas | D56: Preparación de la crianza | E56: CFact: | F56: ='Actividades y tareas'!W59 -> 4.445 | G56: =IF(G55="","",$F$56) ->  | H56: =IF(H55="","",$F$56) ->  | I56: 4.445 | K56: =_xlfn.AGGREGATE(9,6,G56,H56,I56,J56) -> 4.445
E57: CFbarr: | F57: ='Actividades y tareas'!W60 -> 4.26 | G57: =IF(G55="","",$F$57*G55) ->  | H57: =IF(H55="","",$F$57*H55) ->  | I57: 430.26 | K57: =_xlfn.AGGREGATE(9,6,G57,H57,I57,J57) -> 430.26
E58: CV: | F58: ='Actividades y tareas'!W61 -> 3 | G58: =IF(G54="","",$F$58*(G54/1000)) ->  | H58: =IF(H54="","",$F$58*(H54/1000)) ->  | I58: 68.2065 | K58: 68.2065
D59: Crianza | E59: CFbarr: | F59: ='Actividades y tareas'!W63 -> 4.25 | G59: =IF(G55="","",$F$59*G55) ->  | I59: 429.25 | K59: =_xlfn.AGGREGATE(9,6,G59,H59,I59,J59) -> 429.25
E60: CV: | F60: Meses de crianza: | I60: 24
F61: Tipo Barrica: | I61: R. Fránces:
G62: =IF(G59="","",IFERROR(VLOOKUP(G61,'Actividades y tareas'!$V$65:$W$66,2,FALSE)*(G54/1000),"")) ->  | H62: =IF(H59="","",IFERROR(VLOOKUP(H61,'Actividades y tareas'!$V$65:$W$66,2,FALSE)*(H54/1000),"")) ->  | I62: =IF(I59="","",IFERROR(VLOOKUP(I61,'Actividades y tareas'!$V$65:$W$66,2,FALSE)*(I54/1000),"")) -> 1473.597222 | J62: =IF(J59="","",IFERROR(VLOOKUP(J61,'Actividades y tareas'!$V$65:$W$66,2,FALSE)*(J54/1000),"")) ->  | K62: =_xlfn.AGGREGATE(9,6,G62,H62,I62,J62) -> 1473.597222
D63: Trasiegos crianza | E63: CFact: | F63: ='Actividades y tareas'!W68 -> 4.445 | G63: =IF(G54="","",$F$63) ->  | H63: =IF(H54="","",$F$63) ->  | I63: 4.445 | J63: =IF(J54="","",$F$63) ->  | K63: =_xlfn.AGGREGATE(9,6,G63,H63,I63,J63) -> 4.445
E64: CFbarr: | F64: ='Actividades y tareas'!W69 -> 0.85 | G64: =IF(G54="","",$F$64*G55) ->  | H64: =IF(H54="","",$F$64*H55) ->  | I64: 85.85 | J64: =IF(J54="","",$F$64*J55) ->  | K64: 85.85
E65: CV: | F65: ='Actividades y tareas'!W70 -> 3 | G65: =IF(G54="","",$F$65*(G54/1000)) ->  | H65: =IF(H54="","",$F$65*(H54/1000)) ->  | I65: 68.2065 | J65: =IF(J54="","",$F$65*(J54/1000)) ->  | K65: 68.2065
D66: Clarificación y estabilización | E66: CFbarr: | F66: ='Actividades y tareas'!W72 -> 0.425 | G66: =IF(G54="","",$F$66*G55) ->  | H66: =IF(H54="","",$F$66*H55) ->  | I66: 42.925 | J66: =IF(J54="","",$F$66*J55) ->  | K66: 42.925
E67: CV: | F67: ='Actividades y tareas'!W73 -> 3.8 | G67: =IF(G54="","",$F$67*(G54/1000)) ->  | H67: =IF(H54="","",$F$67*(H54/1000)) ->  | I67: 86.3949 | K67: 86.3949
D68: Filtrado crianzas | E68: CFact: | F68: ='Actividades y tareas'!W75 -> 4.445 | G68: =IF(G54="","",$F$68) ->  | H68: =IF(H54="","",$F$68) ->  | I68: 4.445 | K68: 4.445
E69: CFbarr: | F69: ='Actividades y tareas'!W76 -> 0.68 | G69: =IF(G55="","",$F$69*G60) ->  | H69: =IF(H55="","",$F$69*H60) ->  | I69: 16.32 | K69: 16.32
E70: CV: | F70: ='Actividades y tareas'!W77 -> 5.5 | G70: =IF(G54="","",$F$70*(G54/1000)) ->  | H70: =IF(H54="","",$F$70*(H54/1000)) ->  | I70: 125.04525 | K70: 125.04525
C71: Embotellado | D71: Selección de vestido | E71: Vinos diponibles: | G71: =G4 -> Vino 1 | H71: Vino 2 | I71: Vino 3 | J71: Vino 4
G72: Joven Blanco Semiseco | H72: Tinto Crianza | I72: Tinto Barrica | J72: Tinto Reserva
E74: =SUM(G74:J74) -> 75842.276 | G74: =G23 -> 13952.885 | H74: =H23 -> 30552.558 | I74: =I23 -> 22735.5 | J74: =J23 -> 8601.333
E75: Modelo de vestido: | G75: Bag in Box | H75: Mod. Estándar | I75: Mod. Estándar | J75: Modelo Alto
E76: Unidades necesarias: | G76: =IFERROR(ROUND(G74/HLOOKUP(G75,'Actividades y tareas'!$W$129:$Z$139,2,FALSE),0),"") -> 698 | H76: =IFERROR(ROUND(H74/HLOOKUP(H75,'Actividades y tareas'!$W$129:$Z$139,2,FALSE),0),"") -> 40737 | I76: =IFERROR(ROUND(I74/HLOOKUP(I75,'Actividades y tareas'!$W$129:$Z$139,2,FALSE),0),"") -> 30314 | J76: =IFERROR(ROUND(J74/HLOOKUP(J75,'Actividades y tareas'!$W$129:$Z$139,2,FALSE),0),"") -> 11468
G77: =IFERROR(HLOOKUP(G75,'Actividades y tareas'!$W$129:$Z$139,2,FALSE),"") -> 20 | H77: =IFERROR(HLOOKUP(H75,'Actividades y tareas'!$W$129:$Z$139,2,FALSE),"") -> 0.75 | I77: =IFERROR(HLOOKUP(I75,'Actividades y tareas'!$W$129:$Z$139,2,FALSE),"") -> 0.75 | J77: =IFERROR(HLOOKUP(J75,'Actividades y tareas'!$W$129:$Z$139,2,FALSE),"") -> 0.75
E78: Coste de vestido: | G78: =IFERROR(HLOOKUP(G75,'Actividades y tareas'!$W$129:$Z$139,9,FALSE)*G76,"") -> 1605.4 | H78: =IFERROR(HLOOKUP(H75,'Actividades y tareas'!$W$129:$Z$139,9,FALSE)*H76,"") -> 29330.64 | I78: =IFERROR(HLOOKUP(I75,'Actividades y tareas'!$W$129:$Z$139,9,FALSE)*I76,"") -> 21826.08 | J78: =IFERROR(HLOOKUP(J75,'Actividades y tareas'!$W$129:$Z$139,9,FALSE)*J76,"") -> 11812.04 | K78: =_xlfn.AGGREGATE(9,6,G78,H78,I78,J78) -> 64574.16
D79: Lavado y llenado | G79: SI | H79: SI | I79: SI | J79: SI
E80: CV: | F80: ='Actividades y tareas'!W114 -> 30.88 | G80: =IF(G79="SI",$F$80*(G74/1000),"") -> 430.8650888 | H80: =IF(H79="SI",$F$80*(H74/1000),"") -> 943.462991 | I80: =IF(I79="SI",$F$80*(I74/1000),"") -> 702.07224 | J80: =IF(J79="SI",$F$80*(J74/1000),"") -> 265.609163 | K80: =_xlfn.AGGREGATE(9,6,G80,H80,I80,J80) -> 2342.009483
D81: Coste de vestir | G81: SI | H81: SI | I81: SI | J81: SI
E82: CV: | F82: ='Actividades y tareas'!W115 -> 10.5 | G82: =IF(G81="SI",$F$82*(G74/1000),"") -> 146.5052925 | H82: =IF(H81="SI",$F$82*(H74/1000),"") -> 320.801859 | I82: 238.72275 | J82: 90.3139965 | K82: =_xlfn.AGGREGATE(9,6,G82,H82,I82,J82) -> 796.343898
D85: Output: Vinos Finales | F85: TOTAL | G85: =G71 -> Vino 1 | H85: =H71 -> Vino 2 | I85: Vino 3 | J85: Vino 4
G86: =G72 -> Joven Blanco Semiseco | H86: =H72 -> Tinto Crianza | I86: Tinto Barrica | J86: Tinto Reserva
D88: Vinos finales (Litros): | F88: =SUM(G88:J88) -> 75842.276 | G88: =G74 -> 13952.885 | H88: =H74 -> 30552.558 | I88: 22735.5 | J88: 8601.333
F89: Unidades: | G89: =IF(G75="Bag in Box","Bag in Box",IF(G75="","","Bot 3/4")) -> Bag in Box | H89: =IF(H75="Bag in Box","Bag in Box",IF(H75="","","Bot 3/4")) -> Bot 3/4 | I89: Bot 3/4 | J89: Bot 3/4
G90: =G76 -> 698 | H90: =H76 -> 40737 | I90: 30314 | J90: 11468
D91: Coste de las actividades: | F91: =SUM(G91:J91) -> 7457.349742 | G91: =_xlfn.AGGREGATE(9,6,G27,G28,G29,G31,G33,G35,G37,G39,G41,G43,G45,G47,G56,G57,G58,G59,G62,G63,G64,G65,G66,G67,G68,G69,G70,G80,G82) -> 923.5543521 | H91: =_xlfn.AGGREGATE(9,6,H27,H28,H29,H31,H33,H35,H37,H39,H41,H43,H45,H47,H56,H57,H58,H59,H62,H63,H64,H65,H66,H67,H68,H69,H70,H80,H82) -> 1925.148372 | I91: 3923.713696 | J91: 684.9333229
D92: Coste del vestido: | F92: =SUM(G92:J92) -> 64574.16 | G92: =G78 -> 1605.4 | H92: =H78 -> 29330.64 | I92: 21826.08 | J92: 11812.04
D93: Coste Total: | F93: =SUM(G93:J93) -> 241332.3992 | G93: =G92+G91+G21 -> 27270.2319 | H93: =H92+H91+H21 -> 108560.7188 | I93: =I92+I91+I21 -> 72143.90185 | J93: =J92+J91+J21 -> 33357.54657
D94: Coste Unitario: | G94: =G93/G90 -> 39.06910015 | H94: =H93/H90 -> 2.664916878 | I94: =I93/I90 -> 2.379887242 | J94: =J93/J90 -> 2.908750137
F95: =F93/F88 -> 3.182030022 | G95: =G93/G88 -> 1.954451133 | H95: =H93/H88 -> 3.553244833 | I95: =I93/I88 -> 3.173182989 | J95: =J93/J88 -> 3.878183367
D96: Valor Añadido: | F96: =(F92+F91)/F21 -> 0.4254644496 | G96: =(G92+G91)/G21 -> 0.102215997 | H96: =(H92+H91)/H21 -> 0.4043181745 | I96: =(I92+I91)/I21 -> 0.5550229268 | J96: =(J92+J91)/J21 -> 0.599071424

Sheet Actividades y tareas
A1: Procesos y actividades PRINCIPALES | I1: Procesos y actividades PRINCIPALES | S1: Procesos y actividades PRINCIPALES | AD1: Procesos y actividades AUXILIARES | AR1: Procesos y actividades AUXILIARES
A3: Nota 2 | B3: Proceso Vendimia: Actividades y tareas | J3: Nota 3 | L3: Proceso Previnificación: Actividades y tareas | T3: Nota 4 | V3: Proceso Vinificación Complementaria: Actividades y tareas | AD3: Nota 3 | AE3: AUXILIAR: Uso de equipo Depósitos | AR3: Nota 3 | AS3: AUXILIAR: Uso de equipo de Vendimia
B4: (Estimación de consumo de recursos) | L4: (Estimación de consumo de recursos) | V4: (Estimación de consumo de recursos) | AE4: (Estimación de consumo de recursos) | AS4: (Estimación de consumo de recursos)
A5: Actividades y tareas | E5: Acceso a Vendimia | J5: Actividades y tareas | N5: Acceso a Previnificación | T5: Actividades y tareas | X5: Acceso a Vinificación Complementaria | AD5: Inventario aproximado: | AH5: Tipo de amortización: | AJ5: Física/Técnica | AR5: Inventario aproximado: | AV5: Tipo de amortización: | AX5: Física/Técnica
A6: Selección, recolección y transporte | E6: Acceso a Resumen | J6: Despalillado y estrujado | N6: Acceso a Resumen | T6: Selección, Mezcla o Coupage | X6: Acceso a Resumen | AD6: Valor estimado de mercado equipo de Depósitos | AI6: 45000 | AJ6: Valor Residual: | AL6: 14400 | AR6: Tolva de recepción, Despalilladora-Estrujadora, Transportador y Aspirador de Raspones
B7: Consumos estimados: | K7: Costes fijos de la actividad: | M7: =_xlfn.AGGREGATE(9,6,O10,O11,O12,O15,O16,O18,O19,O21,O25) -> 40.38793388 | U7: Costes fijos de la actividad: | W7: =_xlfn.AGGREGATE(9,6,Y11,Y16,Y17) -> 12.945 | AD7: Vida media estimada: | AG7: 80 | AH7: Usos medios al año: | AJ7: 45 | AK7: Amortización: | AN7: =IF(AJ5="Funcional",(AI6-AL6)/(AG7*AJ7),0) -> 0 | AR7: Valor estimado de mercado equipo de vendimia: | AW7: 1800 | AX7: Valor Residual: | AY7: 250
C8: Mano de obra (selección) | K8: Costes variables (€/Tn): | M8: =_xlfn.AGGREGATE(9,6,P10:P15) -> 3.9945 | N8: COMPONENTES DEL COSTE | U8: Costes variables (€/1000 Li): | W8: =_xlfn.AGGREGATE(9,6,Z11,Z15,Z16,Z17) -> 3 | X8: COMPONENTES DEL COSTE | AD8: Depósitos disponibles: | AG8: 20 | AH8: Capacidad promedio: | AJ8: =Notas!N3 -> 5000 | AK8: =Notas!O3 -> 8200 | AN8: =Notas!P3 -> 8.2 | AS8: Vida media estimada: | AU8: 20 | AV8: Usos medios al año: | AX8: 15 | AY8: Amortización: | BB8: =IF(AX5="Funcional",(AW7-AY7)/(AX8*AU8),0) -> 0
C9: Coste de reposición anual cestas para recolección o coste de alquiler | K9: ACTIVIDAD PRINCIPAL. Consumos estimados: | O9: =O14 -> Coste fijo actividad | P9: =P14 -> Coste variable (€/Tn) | U9: Costes fijos por depósito: | W9: =_xlfn.AGGREGATE(9,6,Y15) -> 12.02777778 | Y9: Coste fijo actividad | Z9: Coste variable (€/1.000 li)
C10: Coste total del servicio de transporte contratado para traslado de uvas a bodega | L10: Mano de obra de preparación (hrs por actividad) | N10: 0.5 | O10: =N10*Costehora -> 4.25 | U10: ACTIVIDAD PRINCIPAL. Consumos estimados: | AD10: Consumos estimados asociados a la disponibilidad del equipo de Depósitos: | AR10: Consumos estimados asociados a la disponibilidad del equipo de Vendimia
C11: Transporte con medios propios (coste si se hubiese contratado) | L11: Mano de obra estimada por tonelada | N11: 0.117 | P11: =N11*Costehora -> 0.9945 | V11: Mano de obra para selección-mezcla (hrs/actividad) | X11: 1 | Y11: =X11*Costehora -> 8.5 | AE11: Mantenimiento y/o conservación anual estimado (Reparaciones y otros) | AN11: 150 | AS11: Mantenimiento y/o conservación anual estimado (Reparaciones y otros) | AZ11: 300
C12: Coste anual del Técnico de Campo contratado | L12: Toma y análisis de muestras | O12: 5 | P12: 0 | AE12: Coste de reposición anual del equipo complementario y/o accesorios para el uso de depósitos | AN12: 200
C13: Nº de horas que el propietario dedica a labores de Atrias | Y13: Coste fijo actividad | Z13: Coste variable (€/1.000 li) | AE13: Horas de mano de obra necesarias para que un depósito esté listo para su uso | AK13: 0.2 | AN13: =AK13*Costehora -> 1.7 | AR13: Consumos estimados asociados al uso del equipo - Vendimia -
C14: Subtotal estimado: | D14: 1500 | E14: =IFERROR(D14/$E$32,0) -> 0.09677419355 | M14: Actividades auxiliares | O14: Coste fijo actividad | P14: Coste variable (€/Tn) | W14: Actividades auxiliares | AE14: Horas de mano de obra necesarias para limpieza de depóstio | AK14: 0.3 | AN14: =AK14*Costehora -> 2.55 | AU14: Consumo de energía medio estimado | AX14: 3
L15: Uso del grupo de Vendimia: | N15: SI | O15: =IF(N15="SI",AV16,"") -> 20 | P15: =IF(N15="SI",$BA$16,"") -> 3 | V15: Uso de equipo de Depósitos: | X15: SI | Y15: =IF(X15="SI",$AH$16,"") -> 12.02777778
A16: Recepción de uva en bodega | L16: Uso de equipo de Limpieza: | N16: SI | O16: =IF(N16="SI",$AH$72,"") -> 0.2479338843 | P16: =IF(N16="SI",AM73,"") -> 3.323170732 | V16: Uso de equipos de Bombas: | X16: SI | Y16: =IF(X16="SI",$AH$36,"") -> 4.445 | Z16: =IF(X16="SI",$AM$36,"") -> 3 | AE16: Costes Fijos por uso de 1 depósito: | AH16: =AN7+AN13+AN14+(AN11+AN12)/AJ7 -> 12.02777778 | AJ16: Costes Variables: | AS16: Costes Fijos: | AV16: =((AZ11/AX8)+BB8) -> 20 | AX16: Costes Variables: | BA16: =AX14 -> 3
B17: Consumos estimados: | K17: TRATAMIENTO DE RASPONES. Consumos estimados: | O17: Coste fijo actividad | P17: Coste variable (€/Tn) | V17: Uso de equipo de Frío: | X17: NO | Y17: =IF(X17="SI",$AH$93,"") ->  | Z17: =IF(X17="SI",$AL$93,"") ->  | AS17: Mantenimiento y amortización anual del equipo:
C18: Pesado y registro de uvas (coste de ajustes y/o reparación anual de la pesa) | L18: Transporte | O18: 5 | P18: 10
C19: Toma y análisis de muestras | L19: Mano de obra de la actividad | O19: 0 | P19: 0.5 | X19: Acceso a Vinificación Complementaria
C20: Descarga en tolva (coste de ajustes y/o reparación-mantenimiento medio anual de la tolva) | K20: SULFITADO Y BOMBEO. Consumos estimados: | O20: Coste fijo actividad | P20: Coste variable (€/Tn) | T20: Clarificación y estabilización | X20: Acceso a Resumen | AD20: Nota 3 | AE20: AUXILIAR: Uso de equipo Bombas | AR20: Nota 3 | AS20: AUXILIAR: Uso Grupo de Prensa
C21: Subtotal estimado: | D21: 12500 | E21: =IFERROR(D21/$E$32,0) -> 0.8064516129 | L21: Mano de obra de la actividad (horas preparación) | N21: 0.17 | O21: =N21*Costehora -> 1.445 | U21: Costes fijos de la actividad trasiegos: | W21: =_xlfn.AGGREGATE(9,6,Y30) -> 25.5 | AE21: (Estimación de consumo de recursos) | AS21: (Estimación de consumo de recursos)
A22: Personal de vendimia | L22: Insumos (dióxido de azufre y similares): | P22: 0.5 | U22: Cos.fijos de la actividad clarificación: | W22: =_xlfn.AGGREGATE(9,6,Y32) -> 8.5 | AD22: Inventario aproximado: | AH22: Tipo de amortización: | AJ22: Física/Técnica | AR22: Inventario aproximado: | AV22: Tipo de amortización: | AX22: Física/Técnica
C23: Coste por día y persona | E23: Días | F23: Operarios | U23: Costes fijos de la actividad filtrado: | W23: =_xlfn.AGGREGATE(9,6,Y39) -> 17 | AE23: Valor estimado de mercado equipo de Bombas | AI23: 2300 | AJ23: Valor Residual: | AK23: 0 | AS23: Valor estimado de mercado del grupo de prensa: | AW23: 18000 | AX23: Valor Residual: | AY23: 0
C24: Personal propio | M24: Actividades auxiliares | O24: Coste fijo actividad | P24: Coste variable (€/Tn) | U24: Costes fijo por uso de depósito: | W24: =_xlfn.AGGREGATE(9,6,Y46) -> 12.02777778 | AE24: Vida media estimada: | AG24: 25 | AH24: Usos medios al año: | AJ24: 50 | AK24: Amortización: | AN24: =IF(AJ22="Funcional",(AI23-AK23)/(AJ24*AG24),0) -> 0 | AS24: Vida media estimada: | AU24: 20 | AV24: Usos medios al año: | AX24: 15 | AY24: Amortización: | BB24: =IF(AX22="Funcional",(AW23-AY23)/(AU24*AX24),0) -> 0
C25: Personal adicional | L25: Uso de equipos de Bombas: | N25: SI | O25: =IF(N25="SI",$AH$36,"") -> 4.445 | P25: =IF(N25="SI",AM37,"") -> 5 | U25: Costes fijo uso de equipo bombas: | W25: =_xlfn.AGGREGATE(9,6,Y47) -> 4.445
C26: Ayuda familiar y similar | U26: Costes fijo uso de equipo frío: | W26: =_xlfn.AGGREGATE(9,6,Y48) -> 8.9375 | AE26: Bombas disponibles: | AG26: 6 | AH26: Rendimiento medio: | AJ26: 10000 | AL26: 15000 | AR26: Consumos estimados asociados a la disponibilidad del Grupo de Prensa
C27: Subtotal estimado: | D27: 1500 | E27: =IFERROR(D27/$E$32,0) -> 0.09677419355 | N27: Acceso a Previnificación | U27: Coste variable uso bombas (€/1000 Li): | W27: =_xlfn.AGGREGATE(9,6,Z47) -> 3 | X27: COMPONENTES DEL COSTE | AS27: Mantenimiento y/o conservación anual estimado (Reparaciones y otros) | BA27: 100
J28: Prensado | N28: Acceso a Resumen | U28: Coste variable uso frio (€/1000 Li): | W28: =_xlfn.AGGREGATE(9,6,Z48) -> 2 | Y28: Coste fijo actividad | Z28: Coste variable (€/1.000 li) | AD28: Consumos estimados asociados a la disponibilidad del equipo de Bombas
B29: RESUMEN: | K29: Costes fijos de la actividad: | M29: =_xlfn.AGGREGATE(9,6,O32,O35,O36,O38) -> 11.11166667 | U29: TRASIEGOS. Consumos estimados: | AE29: Mantenimiento y/o conservación anual estimado (Reparaciones y otros) | AN29: 50 | AR29: Consumos estimados asociados al uso del grupo de - Prensado -
C30: Clave propuesta: | K30: Costes variables (€/Tn): | M30: =_xlfn.AGGREGATE(9,6,P32,P33,P35,P36,P38) -> 10.74 | N30: COMPONENTES DEL COSTE | V30: Mano Obra para preparar y vigilar el trasiego | X30: 3 | Y30: =X30*Costehora -> 25.5 | AE30: Coste de reposición anual del equipo complementario y/o accesorios para bombeo | AN30: 100 | AU30: Consumo de energía medio estimado | AX30: 1.47
C31: Kg de uva recolectado ponderado por el numero de fincas | K31: ACTIVIDAD PRINCIPAL. Consumos estimados: | O31: =O9 -> Coste fijo actividad | P31: =P9 -> Coste variable (€/Tn) | U31: CLARIFICACION. Consumos estimados: | AE31: Horas-hombre necesarias para que una bomba esté lista para su uso | AK31: 0.17 | AN31: =AK31*Costehora -> 1.445 | AU31: Limpieza y desinfección del grupo | AX31: 0.05
C32: Coste total estimado de la actividad | E32: =D14+D21+D27 -> 15500 | L32: Uso del Grupo de Prensa | O32: =AV33 -> 6.666666667 | P32: =BA33 -> 1.47 | V32: Mano de obra para preparar y aplicar el clarificante | X32: 1 | Y32: =X32*Costehora -> 8.5
L33: Mano de obra estimada por tonelada | N33: 0.5 | P33: =N33*Costehora -> 4.25 | V33: Orgánicos (albumina, …) | Z33: 4.8 | AD33: Consumos estimados asociados al uso del equipo - Bombeo - | AS33: Costes Fijos: | AV33: =(BB24+BA27)/AX24 -> 6.666666667 | AX33: Costes Variables: | BA33: =AX30 -> 1.47
K34: TRATAMIENTO DE ORUJOS. Consumos estimados: | O34: Coste fijo actividad | P34: Coste variable (€/Tn) | V34: Minerales (bentonita, …) | Z34: 3.8 | AG34: Consumo eléctrico | AJ34: 3 | AL34: =5 -> 5 | AS34: Mantenimiento y amortización anual del equipo:
L35: Transporte | O35: 0 | P35: 0.01 | V35: Vegetales (tanino,…) | Z35: 2.5
L36: Mano de obra de la actividad | O36: 0 | P36: 0.01 | V36: Químicos (anhíd. silíc., …) | Z36: 5 | AE36: Costes Fijos: | AH36: =((AN29+AN30)/AJ24)+AN31+AN24 -> 4.445 | AJ36: Costes Variables: | AM36: =AJ34 -> 3
M37: Actividades auxiliares | O37: Coste fijo actividad | P37: Coste variable (€/Tn) | V37: Otros clarificantes | Z37: 4.5 | AE37: Mantenimiento y amortización anual del equipo: | AM37: =AL34 -> 5 | AR37: Nota 3 | AS37: AUXILIAR: Uso de equipo Barricas
L38: Uso de equipos de Bombas: | N38: SI | O38: =IF(N38="SI",$AH$36,"") -> 4.445 | P38: =IF(N38="SI",AM37,"") -> 5 | U38: FILTRADOS. Consumos estimados: | AS38: (Estimación de consumo de recursos)
V39: Mano de obra para preparar y aplicar los filtros | X39: 2 | Y39: =X39*Costehora -> 17 | AR39: Inventario: | AV39: Tipo de amortización: | AX39: Funcional
V40: Filtro T (por Tierras) | Z40: 4.8 | AS40: Roble francés | AV40: Capacidad: | AW40: 225 | AX40: Vida útil: | AY40: 60
V41: Filtro P (por Placas) | Z41: 3.8 | AS41: Valor medio barrica: | AU41: 975 | AV41: Amortización por crianza al mes: | AY41: =IF(AX39="Funcional",(AU41-AU42)/(AY40),0) -> 14.58333333
V42: Filtro M (por Membranas) | Z42: 2.5 | AS42: Valor Residual: | AU42: 100 | AV42: Amortizacion 1.000 litros crianza al mes: | AY42: =(AY41/AW40)*1000 -> 64.81481481
Y44: Coste fijo actividad | Z44: Coste variable (€/1.000 li) | AS44: Roble americano | AV44: Capacidad: | AW44: 225 | AX44: Vida útil: | AY44: 60
W45: Actividades auxiliares | AS45: Valor medio barrica: | AU45: 483 | AV45: Amortización por crianza al mes: | AY45: =IF(AX39="Funcional",(AU45-AU46)/(AY44),0) -> 6.716666667
V46: Uso de equipo de Depósitos: | X46: SI | Y46: =IF(X46="SI",$AH$16,"") -> 12.02777778 | AS46: Valor Residual: | AU46: 80 | AV46: Amortizacion 1.000 litros crianza al mes: | AY46: =(AY45/AW44)*1000 -> 29.85185185
V47: Uso de equipos de Bombas: | X47: SI | Y47: =IF(X47="SI",$AH$36,"") -> 4.445 | Z47: =IF(X47="SI",$AM$36,"") -> 3
V48: Uso de equipo de Frío: | X48: SI | Y48: =IF(X48="SI",$AH$93,"") -> 8.9375 | Z48: =IF(X48="SI",$AL$93,"") -> 2 | AT48: Costes variables para mes de crianza de 1.000 litros: | AV48: R. Fránces: | AX48: =AY42 -> 64.81481481
AV49: R. Americano: | AX49: =AY46 -> 29.85185185
AD55: Nota 3 | AE55: AUXILIAR: Uso de equipo de Limpieza
X56: Acceso a Vinificación Complementaria | AE56: (Estimación de consumo de recursos)
N57: Acceso a Previnificación | T57: Crianza en Barricas (Barrica Tipo: 225 li) | X57: Acceso a Resumen | AD57: Inventario aproximado: | AH57: Tipo de amortización: | AJ57: Física/Técnica
J58: Desfangado | N58: Acceso a Resumen | U58: Preparación y llenado de barricas | AE58: Valor estimado de mercado equipo de limpieza: | AI58: 1900 | AJ58: Valor Residual: | AK58: 0
K59: Costes fijos de la actividad: | M59: =_xlfn.AGGREGATE(9,6,O64,O66,O71,O72) -> 27.695 | U59: Costes fijos de la actividad: | W59: =_xlfn.AGGREGATE(9,6,Y82) -> 4.445 | AE59: Vida media estimada: | AG59: 25 | AH59: Usos medios al año: | AJ59: 121 | AK59: Amortización: | AN59: =IF(AJ57="Funcional",(AI58-AK58)/(AJ59*AG59),0) -> 0
K60: Costes fijos por depósito: | M60: =_xlfn.AGGREGATE(9,6,O70) -> 12.02777778 | U60: Costes fijos por barrica: | W60: =_xlfn.AGGREGATE(9,6,Y80,Y81) -> 4.26
K61: Costes variables (€/Tn): | M61: =_xlfn.AGGREGATE(9,6,P68,P71,P72) -> 5.6 | N61: COMPONENTES DEL COSTE | U61: Costes variables (1.000 Li): | W61: =_xlfn.AGGREGATE(9,6,Z82) -> 3 | AD61: Consumos estimados asociados a la disponibilidad del equipo de limpieza
O62: =O31 -> Coste fijo actividad | P62: =P31 -> Coste variable (€/Tn) | U62: Crianza (por meses de crianza) | AE62: Mantenimiento y/o conservación anual estimado (Reparaciones y otros) | AM62: 30
K63: ACTIVIDAD PRINCIPAL. Consumos estimados: | U63: Costes fijo barrica/mes: | W63: =_xlfn.AGGREGATE(9,6,Y84) -> 4.25
L64: Mano de obra para preparar y realizar el desfangado, en depósito tipo | N64: 2.5 | O64: =N64*Costehora -> 21.25 | U64: Coste 1.000 litro crianza mes: | AD64: Consumos estimados asociados al uso del equipo - Limpieza Tipo -
V65: =W85 -> R. Fránces: | W65: =Y85 -> 64.81481481 | AG65: Tamaño del depósito de referencia | AJ65: =Deposito1 -> 5000 | AL65: =Deposito2 -> 8.2
L66: Coste de aplicar filtros o similares (por desfangado) | O66: 2 | V66: =W86 -> R. Americano: | W66: =Y86 -> 29.85185185 | AG66: Agua, detergente, desinfectantes | AJ66: 7 | AL66: 10
K67: TRATAMIENTO DE ORUJOS. Consumos estimados: | U67: Trasiegos | AG67: Consumo de energía medio estimado | AJ67: 3 | AL67: 4.5
L68: Transporte y tratamiento de 1 Tn de desechos | N68: 20 | P68: =N68*Notas!E28 -> 0.6 | U68: Costes fijos de la actividad: | W68: =_xlfn.AGGREGATE(9,6,Y90) -> 4.445 | AG68: Mano de obra: | AJ68: 1 | AL68: 1.5
M69: Actividades auxiliares | O69: Coste fijo actividad | P69: Coste variable (€/Tn) | U69: Costes fijos por barrica: | W69: =_xlfn.AGGREGATE(9,6,Y89) -> 0.85 | AJ69: =AJ68*Costehora -> 8.5 | AL69: =AL68*Costehora -> 12.75
L70: Uso de equipo de Depósitos: | N70: SI | O70: =IF(N70="SI",$AH$16,"") -> 12.02777778 | U70: Costes variables (1.000 Li): | W70: =_xlfn.AGGREGATE(9,6,Z90) -> 3 | AJ70: =((AJ66+AJ69+AJ67)/AJ65)*1000 -> 3.7 | AL70: =(AL66+AL69+AL67)/AL65 -> 3.323170732
L71: Uso de equipos de Bombas: | N71: SI | O71: =IF(N71="SI",$AH$36,"") -> 4.445 | P71: =IF(N71="SI",AM37,"") -> 5 | U71: Clarificación y estabilización
L72: Uso de equipo de Frío: | N72: NO | O72: =IF(N72="SI",$AH$93,"") ->  | P72: =IF(N72="SI",AL94,"") ->  | U72: Costes fijos por barrica: | W72: =_xlfn.AGGREGATE(9,6,Y93) -> 0.425 | AE72: Costes Fijos: | AH72: =AN59+(AM62/AJ59) -> 0.2479338843 | AJ72: Costes Variables: | AM72: =AJ70 -> 3.7
U73: Costes variables (1.000 Li): | W73: =_xlfn.AGGREGATE(9,6,Z94) -> 3.8 | AE73: Mantenimiento y amortización anual del equipo: | AM73: =AL70 -> 3.323170732
N74: Acceso a Previnificación | U74: Filtrado
J75: Encubado Tradicional | N75: Acceso a Resumen | U75: Costes fijos de la actividad: | W75: =_xlfn.AGGREGATE(9,6,Y98) -> 4.445
K76: Costes fijos por depósito encubado: | M76: =_xlfn.AGGREGATE(9,6,O82,O83,O84,O87,O90,O91,O92) -> 960.9727778 | N76: Número promedio de días de encubado: | P76: 6 | U76: Costes fijos por barrica: | W76: =_xlfn.AGGREGATE(9,6,Y97) -> 0.68 | X76: COMPONENTES DEL COSTE | AD76: Nota 3 | AE76: AUXILIAR: Uso de equipo de Frío
K77: Costes variables (€/1000 Li): | M77: =_xlfn.AGGREGATE(9,6,P91,P92) -> 3 | U77: Costes variables (1.000 Li): | W77: =_xlfn.AGGREGATE(9,6,Z98,Z99) -> 5.5 | Y77: Coste fijo actividad | Z77: Coste variable (€/1.000 li) | AE77: (Estimación de consumo de recursos)
N78: COMPONENTES DEL COSTE | AD78: Inventario aproximado: | AH78: Tipo de amortización: | AJ78: Física/Técnica
O79: Coste fijo actividad por depósito | P79: Coste variable (€/1.000 li) | U79: Preparación de crianza, coste de actividad por barrica. Consumos estimados: | AE79: Valor estimado de mercado equipo de frío: | AI79: 5500 | AJ79: Valor Residual: | AK79: 0
V80: Mano Obra para limpiar y llenar barrica | X80: 0.5 | Y80: =X80*Costehora -> 4.25 | AE80: Vida media estimada: | AG80: 30 | AH80: Usos medios al año: | AJ80: 64 | AK80: Amortización: | AN80: =IF(AJ78="Funcional",(AI79-AK79)/(AJ80*AG80),0) -> 0
K81: FERMENTACIÓN. Consumos estimados: | V81: Consumo de agua y otros insumos | Y81: 0.01
L82: Mano de obra para preparar y realizar el encubado: | N82: 3 | O82: =N82*Costehora -> 25.5 | V82: ¿Utiliza bombas para llenar barricas? | X82: SI | Y82: =IF(X82="SI",$AH$36,"") -> 4.445 | Z82: =IF(X82="SI",$AM$36,"") -> 3 | AD82: Consumos estimados asociados a la disponibilidad del equipo de Frío
L83: Mano de obra diaria para atender el encubado: | N83: 2 | O83: =N83*P76*Costehora -> 102 | U83: Crianza. Costes estimados por mes | AE83: Mantenimiento y/o conservación anual estimado (Reparaciones y otros) | AM83: 250
L84: Consumo medio de insumos: levadura, etc | O84: 1 | V84: Mano Obra (horas) para rellenado barrica | X84: 0.5 | Y84: =X84*Costehora -> 4.25 | AE84: Coste de reposición anual del equipo complementario y/o accesorios equipo de frío | AM84: 50
K85: REMONTADO. Consumos estimados: | V85: Crianza en: | W85: R. Fránces: | Y85: =AX48 -> 64.81481481 | AE85: Horas-hombre para preparar/controlar diariamente el uso de frío | AK85: 0.5 | AN85: =AK85*Costehora -> 4.25
L86: Mano de obra para preparar y realizar remontado | N86: 4 | W86: R. Americano: | Y86: =AX49 -> 29.85185185
L87: Número de remontados medios al día por depósito | N87: 4 | O87: =N86*N87*P76*Costehora -> 816 | AD87: Consumos estimados asociados al uso del equipo - Limpieza Tipo -
O88: Coste fijo actividad | P88: Coste variable (€/1.000 li) | U88: Trasiego. Costes estimados | AG88: Tamaño del depósito de referencia | AJ88: =Deposito1 -> 5000 | AL88: =Deposito2 -> 8.2
M89: Actividades auxiliares | V89: Mano Obra (horas) para realizar el trasiego/barrica | X89: 0.1 | Y89: =X89*Costehora -> 0.85 | AG89: Consumo de energía medio estimado | AJ89: 10 | AL89: 15
L90: Uso de equipo de Depósitos: | N90: SI | O90: =IF(N90="SI",$AH$16,"") -> 12.02777778 | V90: ¿Utiliza bombas para el trasiego? | X90: SI | Y90: =IF(X90="SI",$AH$36,"") -> 4.445 | Z90: =IF(X90="SI",$AM$36,"") -> 3 | AJ90: =(AJ89/AJ88)*1000 -> 2 | AL90: =AL89/AL88 -> 1.829268293
L91: Uso de equipos de Bombas: | N91: SI | O91: =IF(N91="SI",$AH$36,"") -> 4.445 | P91: =IF(N91="SI",$AM$36,"") -> 3
L92: Uso de equipo de Frío: | N92: NO | O92: =IF(N92="SI",$AH$93,"") ->  | P92: =IF(N92="SI",$AL$93,"") ->  | U92: Clarificación y estabilización. Costes estimados
V93: Mano Obra (horas) para clarificar una barrica | X93: 0.05 | Y93: =X93*Costehora -> 0.425 | AE93: Costes Fijos: | AH93: =((AM83+AM84)/AJ80)+AN85+AN80 -> 8.9375 | AJ93: Costes Variables: | AL93: =AJ90 -> 2
N94: Acceso a Previnificación | V94: Clarificante usado: | W94: Minerales (bentonita, …) | Z94: =IFERROR(VLOOKUP(W94,V33:Z37,5,FALSE),"") -> 3.8 | AE94: Mantenimiento y amortización anual del equipo: | AL94: =AL90 -> 1.829268293
J95: Maceración Carbónica | N95: Acceso a Resumen
K96: Costes fijos de la actividad: | M96: =_xlfn.AGGREGATE(9,6,O100,O106) -> 12.945 | N96: Duración media del proceso: | P96: 10 | U96: Filtrado. Costes estimados
K97: Costes variables (€/1000 Li): | M97: =_xlfn.AGGREGATE(9,6,P106) -> 3 | N97: COMPONENTES DEL COSTE | V97: Mano Obra (horas) para filtrar una barrica | X97: 0.08 | Y97: =X97*Costehora -> 0.68
K98: Costes fijos por depósito macerado: | M98: =_xlfn.AGGREGATE(9,6,O101,O102,O105) -> 26.47777778 | O98: Coste fijo actividad por depósito | P98: Coste variable (€/1.000 li) | V98: ¿Utiliza bombas para el filtrado? | X98: SI | Y98: =IF(X98="SI",$AH$36,"") -> 4.445 | Z98: =IF(X98="SI",$AM$36,"") -> 3
K99: FERMENTACIÓN. Consumos estimados: | V99: Insumos para el filtrado: | W99: Filtro M (por Membranas) | Z99: =IFERROR(VLOOKUP(W99,V40:Z42,5,FALSE),"") -> 2.5
L100: Mano de obra para preparar la maceración: | N100: 1 | O100: =N100*Costehora -> 8.5
L101: Mano de obra dia para atender un depósito, medir temperatura, etc: | N101: 0.17 | O101: =N101*P96*Costehora -> 14.45
L102: Consumo medio de insumos | O102: 0
O103: Coste fijo actividad | P103: Coste variable (€/1.000 li)
M104: Actividades auxiliares
L105: Uso de equipo de Depósitos: | N105: SI | O105: =IF(N105="SI",$AH$16,"") -> 12.02777778
L106: Uso de equipos de Bombas: | N106: SI | O106: =IF(N106="SI",$AH$36,"") -> 4.445 | P106: =IF(N106="SI",$AM$36,"") -> 3
N112: Acceso a Previnificación | T112: Actividades y tareas | X112: Acceso a Vinificación Complementaria | AD112: Nota 3 | AE112: AUXILIAR: Uso de equipo de Embotellado
J113: Fermentación Alcohólica | N113: Acceso a Resumen | T113: Coste de Embotellado (sin vestido) | X113: Acceso a Resumen | AE113: (Estimación de consumo de recursos)
K114: Costes fijos de la actividad: | M114: =_xlfn.AGGREGATE(9,6,O124) -> 4.445 | N114: Duración media del proceso: | P114: 20 | U114: Costes Lavado/Llenado (€/mil Li): | W114: =_xlfn.AGGREGATE(9,6,Z119,Z120,Z121,Z122,Z124,Z125) -> 30.88 | AD114: Inventario y costes de mantenimiento:
K115: Costes variables (€/1000 Li): | M115: =_xlfn.AGGREGATE(9,6,P123,P124,P125) -> 3 | N115: COMPONENTES DEL COSTE | U115: Costes de vestir sin elemetos (€/mil Li): | W115: =_xlfn.AGGREGATE(9,6,Z124,Z125) -> 10.5 | X115: COMPONENTES DEL COSTE | AD115: Lavadora: | AH115: Tipo de amortización: | AJ115: Física/Técnica
K116: Costes fijos por depósito: | M116: =_xlfn.AGGREGATE(9,6,O118,O119,O120,O123,O125) -> 52.42777778 | O116: Coste fijo actividad por depósito | P116: Coste variable (€/1.000 li) | Y116: Coste fijo actividad | Z116: Coste variable (€/1.000 li) | AE116: Valor estimado de mercado del equipo: | AH116: 1500 | AJ116: Valor Residual: | AK116: 0
K117: FERMENTACIÓN. Consumos estimados: | AE117: Vida media estimada: | AG117: 50 | AH117: Usos medios al año: | AJ117: 300000
L118: Mano de obra para preparar la fementación/depósito: | N118: 1 | O118: =N118*Costehora -> 8.5 | U118: Lavado y llenado de botellas. Consumos estimados: | AF118: Amortiza./Mil botellas: | AH118: =IF(AJ115="Funcional",(AH116-AK116)/(AG117*AJ117)*1000,0) -> 0
L119: Mano de obra dia para atender un depósito, medir temperatura, etc: | N119: 0.17 | O119: =N119*P114*Costehora -> 28.9 | V119: Mano de obra para llenado de 1.000 botellas | X119: 2 | Z119: =X119*Costehora -> 17 | AE119: Mantenimiento y/o conservación anual estimado (Reparaciones y otros) | AH119: 400 | AJ119: =(AH119/AJ117)*1000 -> 1.333333333
L120: Consumo medio de insumos por depósito | O120: 3 | V120: Insumos para el Lavado (agua y otros para 1.000 botellas) | Z120: 1.5
O121: Coste fijo actividad | P121: Coste variable (€/1.000 li) | V121: Uso de equipo de Lavado: | X121: SI | Z121: =IF(X121="SI",AL122,"") -> 1.333333333
M122: Actividades auxiliares | V122: Uso de equipo de Llenado: | X122: SI | Z122: =IF(X122="SI",AL132,"") -> 0.5466666667 | AE122: Costes Fijos: | AJ122: Costes Variables: | AL122: =AH118+AJ119 -> 1.333333333
L123: Uso de equipo de Depósitos: | N123: SI | O123: =IF(N123="SI",$AH$16,"") -> 12.02777778 | U123: Vestido de botellas. Consumos estimados: | AJ123: Para mil botellas
L124: Uso de equipos de Bombas: | N124: SI | O124: =IF(N124="SI",$AH$36,"") -> 4.445 | P124: =IF(N124="SI",$AM$36,"") -> 3 | V124: Mano de obra para vestido de 1.000 botellas | X124: 1 | Z124: =X124*Costehora -> 8.5
L125: Uso de equipo de Frío: | N125: NO | O125: =IF(N125="SI",$AH$93,"") ->  | P125: =IF(N125="SI",$AL$93,"") ->  | V125: Uso de equipo Etiquetadora-Capsuladora | X125: SI | Z125: =IF(X125="SI",AL142,"") -> 2 | AD125: Llenadora - Taponadora: | AH125: Tipo de amortización: | AJ125: Funcional
AE126: Valor estimado de mercado del equipo: | AH126: 3500 | AJ126: Valor Residual: | AK126: 300
N127: Acceso a Previnificación | U127: Modelos de vestido, coste estimado: | AE127: Vida media estimada: | AG127: 50 | AH127: Usos medios al año: | AJ127: 300000
J128: Maceración Pelicular en Frío | N128: Acceso a Resumen | W128: Modelos | AF128: Amortiza./Mil botellas: | AH128: =IF(AJ125="Funcional",(AH126-AK126)/(AG127*AJ127)*1000,0) -> 0.2133333333
K129: Costes fijos de la actividad: | M129: =_xlfn.AGGREGATE(9,6,O139) -> 4.445 | N129: Duración media del proceso: | P129: 1 | V129: Componentes | W129: Mod. Base | X129: Mod. Estándar | Y129: Modelo Alto | Z129: Bag in Box | AE129: Mantenimiento y/o conservación anual estimado (Reparaciones y otros) | AH129: 100 | AJ129: =(AH129/AJ127)*1000 -> 0.3333333333
K130: Costes variables (€/1000 Li): | M130: =_xlfn.AGGREGATE(9,6,P138,P139,P140) -> 5 | N130: COMPONENTES DEL COSTE | V130: Capacidad: | W130: 0.75 | X130: 0.75 | Y130: 0.75 | Z130: 20
K131: Costes fijos por depósito: | M131: =_xlfn.AGGREGATE(9,6,O133,O134,O135,O138,O140) -> 33.91027778 | O131: Coste fijo actividad por depósito | P131: Coste variable (€/1.000 li) | V131: Botella o recipiente | W131: 0.43 | X131: 0.43 | Y131: 0.63 | Z131: 2.2
K132: FERMENTACIÓN. Consumos estimados: | V132: Tapones - corchos | W132: 0.05 | X132: 0.05 | Y132: 0.1 | AE132: Costes Fijos: | AJ132: Costes Variables: | AL132: =AH128+AJ129 -> 0.5466666667
L133: Mano de obra para preparar la maceración/depósito: | N133: 1 | O133: =N133*Costehora -> 8.5 | V133: Etiqueta frontal | W133: 0.07 | X133: 0.09 | Y133: 0.12 | AJ133: Para mil botellas
L134: Mano de obra dia para atender un depósito, medir temperatura, etc: | N134: 0.17 | O134: =N134*P129*Costehora -> 1.445 | V134: Contraetiqueta Consejo | W134: 0.08 | X134: 0.08 | Y134: 0.08 | Z134: 0.1
L135: Consumo medio de insumos por depósito | O135: 3 | V135: Contraetiqueta Leyenda | W135: 0.02 | X135: 0.03 | Y135: 0.05 | AD135: Etiquetadora - Capsuladora: | AH135: Tipo de amortización: | AJ135: Funcional
O136: Coste fijo actividad | P136: Coste variable (€/1.000 li) | V136: Cápsula | W136: 0.03 | X136: 0.04 | Y136: 0.05 | AE136: Valor estimado de mercado del equipo: | AH136: 7500 | AJ136: Valor Residual: | AK136: 3500
M137: Actividades auxiliares | V137: Coste Total: | W137: =SUM(W131:W136) -> 0.68 | X137: =SUM(X131:X136) -> 0.72 | Y137: 1.03 | Z137: 2.3 | AE137: Vida media estimada: | AG137: 20 | AH137: Usos medios al año: | AJ137: 300000
L138: Uso de equipo de Depósitos: | N138: SI | O138: =IF(N138="SI",$AH$16,"") -> 12.02777778 | V138: Coste mil botellas: | W138: =W137*1000 -> 680 | X138: =X137*1000 -> 720 | Y138: 1030 | Z138: 2300 | AF138: Amortiza./Mil botellas: | AH138: =IF(AJ135="Funcional",(AH136-AK136)/(AG137*AJ137)*1000,0) -> 0.6666666667
L139: Uso de equipos de Bombas: | N139: SI | O139: =IF(N139="SI",$AH$36,"") -> 4.445 | P139: =IF(N139="SI",$AM$36,"") -> 3 | V139: Coste mil litros: | W139: =(1000*W137)/W130 -> 906.6666667 | X139: =(1000*X137)/X130 -> 960 | Y139: 1373.333333 | Z139: 115 | AE139: Mantenimiento y/o conservación anual estimado (Reparaciones y otros) | AH139: 400 | AJ139: =(AH139/AJ137)*1000 -> 1.333333333
L140: Uso de equipo de Frío: | N140: SI | O140: =IF(N140="SI",$AH$93,"") -> 8.9375 | P140: =IF(N140="SI",$AL$93,"") -> 2
N142: Acceso a Previnificación | AE142: Costes Fijos: | AJ142: Costes Variables: | AL142: =AH138+AJ139 -> 2
J143: Fermentación Maloláctica | N143: Acceso a Resumen | AJ143: Para mil botellas
K144: Costes fijos de la actividad: | M144: =_xlfn.AGGREGATE(9,6,O154) -> 4.445 | N144: Duración media del proceso: | P144: 10
K145: Costes variables (€/1000 Li): | M145: =_xlfn.AGGREGATE(9,6,P153,P154,P155) -> 3 | N145: COMPONENTES DEL COSTE
K146: Costes fijos por depósito: | M146: =_xlfn.AGGREGATE(9,6,O148,O149,O150,O153,O155) -> 39.53277778 | O146: Coste fijo actividad por depósito | P146: Coste variable (€/1.000 li)
K147: FERMENTACIÓN. Consumos estimados:
L148: Mano de obra para preparar la fermentación/depósito: | N148: 0.83 | O148: =N148*Costehora -> 7.055
L149: Mano de obra dia para atender un depósito, medir temperatura, etc: | N149: 0.17 | O149: =N149*P144*Costehora -> 14.45
L150: Consumo medio de insumos por depósito | O150: 6
O151: Coste fijo actividad | P151: Coste variable (€/1.000 li)
M152: Actividades auxiliares
L153: Uso de equipo de Depósitos: | N153: SI | O153: =IF(N153="SI",$AH$16,"") -> 12.02777778
L154: Uso de equipos de Bombas: | N154: SI | O154: =IF(N154="SI",$AH$36,"") -> 4.445 | P154: =IF(N154="SI",$AM$36,"") -> 3
L155: Uso de equipo de Frío: | N155: NO | O155: =IF(N155="SI",$AH$93,"") ->  | P155: =IF(N155="SI",$AL$93,"") -> 
N168: Acceso a Previnificación
J169: Descube Escurrido | N169: Acceso a Resumen
K170: Costes fijos de la actividad: | M170: =_xlfn.AGGREGATE(9,6,O174,O179) -> 38.445
K171: Costes variables (€/1000 Li): | M171: =_xlfn.AGGREGATE(9,6,P178,P179,P180) -> 5 | N171: COMPONENTES DEL COSTE
K172: Costes fijos por depósito: | M172: =_xlfn.AGGREGATE(9,6,O175,O178,O180) -> 45.02083333 | O172: Coste fijo actividad por depósito | P172: Coste variable (€/1.000 li)
K173: FERMENTACIÓN. Consumos estimados:
L174: Mano de obra para realizar descube por vino: | N174: 4 | O174: =N174*Costehora -> 34
L175: Número de depóstios utilizados en el descube: | N175: 2 | O175: =IFERROR(N175*O178,0) -> 24.05555556
M177: Actividades auxiliares
L178: Uso de equipo de Depósitos: | N178: SI | O178: =IF(N178="SI",$AH$16,"") -> 12.02777778
L179: Uso de equipos de Bombas: | N179: SI | O179: =IF(N179="SI",$AH$36,"") -> 4.445 | P179: =IF(N179="SI",$AM$36,"") -> 3
L180: Uso de equipo de Frío: | N180: SI | O180: =IF(N180="SI",$AH$93,"") -> 8.9375 | P180: =IF(N180="SI",$AL$93,"") -> 2

Sheet Resumen
A1: Resumen del proceso industrial y estudio del valor añadido | N1: Costes e indicadores básicos
H3: Valor añadido sobre la uva | J3: Valores medio
A4: Coste de la UVA: | D4: =Vendimia!O6 -> 110000 | F4: =Vendimia!Q6 -> 144500 | J4: 1000 | N4: Costes Básicos
N5: Materia prima: | Q5: =Vendimia!F5 -> Listán Blanco | R5: =Vendimia!G5 -> Tintilla | S5: =Vendimia!H5 -> Negramoll | T5: =Vendimia!I5 -> Listán Negra | U5: TOTAL
A6: Proceso Vendimia: | F6: =Vendimia!Q7 -> 15500 | H6: =Vendimia!$R$6 -> 0.107266436 | J6: =(F6/$D$4)*1000 -> 140.9090909
B7: =Vendimia!N10 -> Selección, recolección y transporte | E7: =Vendimia!Q10 -> 1500 | F7: =Vendimia!R10 -> 0.09677419355 | H7: =F6/$F$4 -> 0.107266436 | Q7: =Vendimia!F4 -> Lb | R7: =Vendimia!G4 -> Ti | S7: =Vendimia!H4 -> Ne | T7: =Vendimia!I4 -> Ln
B8: =Vendimia!N11 -> Recepción de uva en bodega | E8: =Vendimia!Q11 -> 12500 | F8: =Vendimia!R11 -> 0.8064516129 | Q8: =Vendimia!F7 -> 15000 | R8: =Vendimia!G7 -> 25000 | S8: =Vendimia!H7 -> 40000 | T8: =Vendimia!I7 -> 30000 | U8: =SUM(Q8:T8) -> 110000
B9: =Vendimia!N12 -> Personal de vendimia | E9: =Vendimia!Q12 -> 1500 | F9: =Vendimia!R12 -> 0.09677419355 | Q9: =Vendimia!F9 -> 13500 | R9: =Vendimia!G9 -> 30000 | S9: =Vendimia!H9 -> 68000 | T9: =Vendimia!I9 -> 33000 | U9: =SUM(Q9:T9) -> 144500
N11: Producción final: | Q11: =Vinificacion!G86 -> Joven Blanco Semiseco | R11: =Vinificacion!H86 -> Tinto Crianza | S11: =Vinificacion!I86 -> Tinto Barrica | T11: =Vinificacion!J86 -> Tinto Reserva | U11: TOTAL
A12: Proceso Previnificación: | F12: =Previnificacion!R8 -> 9300.889427 | H12: =F12/F4 -> 0.0643660168 | J12: =(F12/$D$4)*1000 -> 84.55354025
B13: =Previnificacion!O11 -> Despalillado y Estrujado | E13: =Previnificacion!R11 -> 598.7497605 | F13: =Previnificacion!S11 -> 0.06437553798 | H13: =F12/$F$4 -> 0.0643660168 | Q13: =Vinificacion!G85 -> Vino 1 | R13: =Vinificacion!H85 -> Vino 2 | S13: =Vinificacion!I85 -> Vino 3 | T13: =Vinificacion!J85 -> Vino 4
B14: =Previnificacion!O12 -> Prensado | E14: =Previnificacion!R12 -> 1219.939667 | F14: =Previnificacion!S12 -> 0.1311637641 | N14: Producción: | Q14: =Vinificacion!G89 -> Bag in Box | R14: =Vinificacion!H89 -> Bot 3/4 | S14: =Vinificacion!I89 -> Bot 3/4 | T14: =Vinificacion!J89 -> Bot 3/4
B15: =Previnificacion!O13 -> Desfangado | E15: =Previnificacion!R13 -> 771.8111111 | F15: =Previnificacion!S13 -> 0.08298250583 | Q15: =Vinificacion!G90 -> 698 | R15: =Vinificacion!H90 -> 40737 | S15: =Vinificacion!I90 -> 30314 | T15: =Vinificacion!J90 -> 11468 | U15: =SUM(Q15:T15) -> 83217
B16: =Previnificacion!O14 -> Encubado | E16: =Previnificacion!R14 -> 4076.574861 | F16: =Previnificacion!S14 -> 0.4382994651 | N16: Coste total: | Q16: =Vinificacion!G93 -> 27270.2319 | R16: =Vinificacion!H93 -> 108560.7188 | S16: =Vinificacion!I93 -> 72143.90185 | T16: =Vinificacion!J93 -> 33357.54657 | U16: =SUM(Q16:T16) -> 241332.3992
B17: =Previnificacion!O15 -> Maceración Carbónica | E17: =Previnificacion!R15 -> 347.0248611 | F17: =Previnificacion!S15 -> 0.03731093288 | N17: Coste unitario: | Q17: =Vinificacion!G94 -> 39.06910015 | R17: =Vinificacion!H94 -> 2.664916878 | S17: =Vinificacion!I94 -> 2.379887242 | T17: =Vinificacion!J94 -> 2.908750137
B18: =Previnificacion!O16 -> Fermentación Alcohólica | E18: =Previnificacion!R16 -> 460.1748611 | F18: =Previnificacion!S16 -> 0.04947643607 | N18: Coste por litro: | Q18: =Vinificacion!G95 -> 1.954451133 | R18: =Vinificacion!H95 -> 3.553244833 | S18: =Vinificacion!I95 -> 3.173182989 | T18: =Vinificacion!J95 -> 3.878183367 | U18: =Vinificacion!F95 -> 3.182030022
B19: =Previnificacion!O17 -> Maceración Pelicular en Frío | E19: =Previnificacion!R17 -> 541.2273611 | F19: =Previnificacion!S17 -> 0.05819092522
B20: =Previnificacion!O18 -> Fermentación Maloláctica | E20: =Previnificacion!R18 -> 563.7173611 | F20: =Previnificacion!S18 -> 0.06060897353 | N20: Hipótesis, variables e indicadores relevantes
B21: =Previnificacion!O19 -> Descube y Escurrido | E21: =Previnificacion!R19 -> 721.6695833 | F21: =Previnificacion!S19 -> 0.07759145929 | N21: =Notas!M2 -> Coste medio de hora de operario de bodega: | S21: =Costehora -> 8.5
N22: =Notas!M4 -> Capacidad Barrica Tipo: | S22: =Barrica -> 225
A23: Proceso Vinificación Final: | F23: =Vinificacion!R9 -> 72031.50974 | H23: =F23/F4 -> 0.4984879567 | J23: =(F23/$D$4)*1000 -> 654.8319067 | N23: Rendimiento medio de la uva en mosto: | S23: =Notas!E29 -> 0.7
B24: =Vinificacion!O12 -> Selección, Mezcla o Coupage | E24: =Vinificacion!R12 -> 329.7751111 | F24: =Vinificacion!S12 -> 0.004578206292 | H24: =F23/$F$4 -> 0.4984879567
B25: =Vinificacion!O13 -> Trasiegos | E25: =Vinificacion!R13 -> 286.75 | F25: =Vinificacion!S13 -> 0.003980896708
B26: =Vinificacion!O14 -> Clarificación | E26: =Vinificacion!R14 -> 241.9645 | F26: =Vinificacion!S14 -> 0.003359147974
B27: =Vinificacion!O15 -> Filtrados | E27: =Vinificacion!R15 -> 621.116378 | F27: =Vinificacion!S15 -> 0.0086228427
B28: =Vinificacion!O16 -> Preparación de la crianza | E28: =Vinificacion!R16 -> 502.9115 | F28: =Vinificacion!S16 -> 0.006981826451
B29: =Vinificacion!O17 -> Crianza | E29: =Vinificacion!R17 -> 1902.847222 | F29: =Vinificacion!S17 -> 0.02641687269
B30: =Vinificacion!O18 -> Trasiegos crianza | E30: =Vinificacion!R18 -> 158.5015 | F30: =Vinificacion!S18 -> 0.002200446729
B31: =Vinificacion!O19 -> Clarificación y estabilización | E31: =Vinificacion!R19 -> 129.3199 | F31: =Vinificacion!S19 -> 0.001795324025
B32: =Vinificacion!O20 -> Filtrado crianzas | E32: =Vinificacion!R20 -> 145.81025 | F32: =Vinificacion!S20 -> 0.002024256475
B33: =Vinificacion!O21 -> Selección de vestido | E33: =Vinificacion!R21 -> 64574.16 | F33: =Vinificacion!S21 -> 0.896471006
B34: =Vinificacion!O22 -> Lavado y llenado | E34: =Vinificacion!R22 -> 2342.009483 | F34: =Vinificacion!S22 -> 0.03251368035
B35: =Vinificacion!O23 -> Coste de vestir | E35: =Vinificacion!R23 -> 796.343898 | F35: =Vinificacion!S23 -> 0.01105549364
A37: TOTAL Proceso Industrial Bodega: | F37: =F6+F12+F23 -> 96832.39917 | H37: =F37/F4 -> 0.6701204095 | J37: =(F37/$D$4)*1000 -> 880.2945379
H38: =F37/$F$4 -> 0.6701204095

Sheet Notas
A1: Nota 0: Consideraciones generales | M1: Coste estimado de los principales insumos y otros estandar
B2: En azul son datos para introducir y/o modificar | M2: Coste medio de hora de operario de bodega: | Q2: 8.5
B3: En negro son datos calculados o estimados. Estan protegidos | M3: Depósito tipo: | N3: 5000 | O3: 8200 | P3: =O3/1000 -> 8.2
B4: Las letras en color rojo intenso contienten hipervinculos a otras celdas o pestañas y que tienen un carácter informativo o aclaratorio | M4: Capacidad Barrica Tipo: | O4: 225
M6: Consejos de navegacion atráves de los vínculos del libro
M7: Volver al vínculo anterior | O7: ALT + ← | P7: ALT+FLECHA IZQUIERDA
A8: Nota 1: Coste de la uva en vendimia | M8: Volver al vínculo siguiente | O8: ALT + → | P8: ALT+FLECHA DERECHA
B9: En el caso de mezcla de uva propia y comprada se aconseja considerar el precio medio podenderado de compra y de coste de producción.
B11: Se ha estimado una tasa media de rechazo de uva en entrada en bodga del 0,5%
A14: Nota 2: Proceso vendimia | G14: (Actividades y tareas) | I14: (Proceso)
B15: A titulo orientativo se proponen evaluar economica y financieramento los siguientes componentes del coste del proceso de vendimia y de sus actividades y tareas.
A19: Nota 3: Proceso Previnificación | G19: (Actividades y tareas) | I19: (Proceso)
A20: General:
B21: El promedio del sector considera un 70% aunuqe depende de la calidad de la uva y del proceso de vinificiación.
B23: Para calcular los rendimientos de la uva se puede tomar en consideración los siguientes conceptos y estimaciones:
E25: Tasa media
C26: Raspón | E26: 0.06
C27: Orujos | E27: 0.21
C28: Fango y Heces | E28: 0.03
C29: Mosto final | E29: =1-SUM(E26:E28) -> 0.7
A30: Mermas en el proceso de previnificación
A31: Sobre el vino potencial, las pérdidas promedio derivadas de la fermentación y mezclas | G31: 0.012
A34: Nota 4: Proceso Vinificación Complementaria | G34: (Análisis)
B35: En color azul debemos personalizar el nombre y clave de nuestros vinos.
B36: Las pérdidas estimadas por mezclas, clarificación y estabilización, trasiegos y similares asciende a 1,75%
B38: Respecto a los trasiegos y al fltrado cuando se pregunta el número de depósitos a usar se hace referencia al número necesario a parte del actualmente usado.
